NUMERO_MANDATO;RIGA_MANDATO;QUIET;IMPORTO_RIGA;IMPORTO_MANDATO;BENEFICIARIO;CIG;TITOLO_PAGAMENTO;DATA_MANDATO;CAPITOLO;ARTICOLO;NUMERO_IMPEGNO;TITOLO;DESCR_TITOLO;LIVELLO_II;DESCR_LIVELLO_II;LIVELLO_III;DESCR_LIVELLO_III;LIVELLO_IV;DESCR_LIVELLO_IV;LIVELLO_V;DESCR_LIVELLO_V;DATA_PAG_EFF;
1;1;0;"86.020,00";"86.020,00";COSTRUZIONI VIRAGO S.N.C.;7962522106;SALDO Fatt.n. 13/PA  del 12/12/2019 LAVORI DI MIGLIORAMENTO SISMICO PLESSO SCOLASTICO;13-01-2020;779;0;451;2;Spese in conto capitale;2;Investimenti fissi lordi e acquisto di terreni;1;Beni materiali;9;Beni immobili;3;Fabbricati ad uso scolastico;13-01-2020;
3;1;0;"316,50";"316,50";OMESSO NOMINATIVO NEL RISPETTO DELLA NORMATIVA SULLA PROTEZIONE DATI PERSONALI; ;PROGETTO DI SOSTEGNO PER DISAGIO ADULTO - FORNITURA PASTI PERIODO NOVEMBRE 2019/APRILE 2020: Liquidazione per pasti Casa di Riposo Aita - mese novembre 2019 (FATT. N. 559/B del 03/12/2019).;15-01-2020;576;0;501;1;Spese correnti;4;Trasferimenti correnti;2;Trasferimenti correnti a Famiglie;2;Interventi assistenziali;999;Altri assegni e sussidi assistenziali;15-01-2020;
4;1;0;"117,00";"117,00";OMESSO NOMINATIVO NEL RISPETTO DELLA NORMATIVA SULLA PROTEZIONE DATI PERSONALI; ;INTEGRAZIONE IMPEGNO DI SPESA PER EROGAZIONE CONTRIBUTO ECONOMICO: Liquidazione per pasti Casa di Riposo Aita - mese novembre 2019 (Fatt. n. 555/B  del 03/12/2019).;15-01-2020;576;0;536;1;Spese correnti;4;Trasferimenti correnti;2;Trasferimenti correnti a Famiglie;2;Interventi assistenziali;999;Altri assegni e sussidi assistenziali;15-01-2020;
6;1;0;"780,30";"780,30";ZEN GIORGIO; ;LIQUIDAZIONE COMPENSO PER INCARICO DI COLLABORAZIONE OCCASIONALE PER SUPPORTO AL RESPONSABILE DELLAREA ECONOMICO FINANZIARIA AL DOTT. ZEN GIORGIO - DIPENDENTE DEL COMUNE DI CASTELLO DI GODEGO. MESE DI DICEMBRE 2019.;15-01-2020;48;0;472;1;Spese correnti;3;Acquisto di beni e servizi;2;Acquisto di servizi;11;Prestazioni professionali e specialistiche;8;"Prestazioni di natura contabile, tributaria e del lavoro";15-01-2020;
10;1;0;"4,50";"4,50";BERTONCELLO PAOLA ECONOMO COMUNALE; ;Rimborso bolletta N. 30 del  31-10-19 Acquisto omaggio floreale per Matrimonio del 12/09/2019.;16-01-2020;3;1;512;1;Spese correnti;3;Acquisto di beni e servizi;1;Acquisto di beni;2;Altri beni di consumo;9;Beni per attività di rappresentanza;16-01-2020;
11;1;0;"9,90";"9,90";BERTONCELLO PAOLA ECONOMO COMUNALE; ;Rimborso bolletta N. 27 del  02-10-19 Spedizione n. 1 raccomandata di Tipo 1 con prova di consegna (rif. prot. n. 12210/2019).;16-01-2020;34;3;474;1;Spese correnti;3;Acquisto di beni e servizi;2;Acquisto di servizi;16;Servizi amministrativi;2;Spese postali;16-01-2020;
12;1;0;"10,50";"10,50";BERTONCELLO PAOLA ECONOMO COMUNALE; ;Rimborso bolletta N. 28 del  09-10-19 Acquisto materiale postale (stampati vari) per spedizione documenti da parte degli uffici comunali.;16-01-2020;37;0;480;1;Spese correnti;3;Acquisto di beni e servizi;1;Acquisto di beni;2;Altri beni di consumo;1;"Carta, cancelleria e stampati";16-01-2020;
13;1;0;"3,80";"3,80";BERTONCELLO PAOLA ECONOMO COMUNALE; ;Rimborso bolletta N. 32 del  31-12-19 Acquisto n. 1 confezione di batterie stilo AAA per il registratore del comune.;16-01-2020;37;0;638;1;Spese correnti;3;Acquisto di beni e servizi;1;Acquisto di beni;2;Altri beni di consumo;999;Altri beni e materiali di consumo n.a.c.;16-01-2020;
14;1;0;"25,00";"25,00";BERTONCELLO PAOLA ECONOMO COMUNALE; ;Rimborso bolletta N. 29 del  30-10-19 Acquisto omaggi floreali vari.;16-01-2020;40;2;509;1;Spese correnti;3;Acquisto di beni e servizi;1;Acquisto di beni;2;Altri beni di consumo;999;Altri beni e materiali di consumo n.a.c.;16-01-2020;
15;1;0;"35,76";"35,76";BERTONCELLO PAOLA ECONOMO COMUNALE; ;Rimborso bolletta N. 31 del  12-11-19 Acquisto n. 2 switch per le scuole elementari di Liedolo.;16-01-2020;236;0;522;1;Spese correnti;3;Acquisto di beni e servizi;2;Acquisto di servizi;9;Manutenzione ordinaria e riparazioni;6;Manutenzione ordinaria e riparazioni di macchine per ufficio;16-01-2020;
16;1;0;"24,65";"24,65";BERTONCELLO PAOLA ECONOMO COMUNALE; ;RESA DEL CONTO DELLECONOMO COMUNALE PER LANNO 2019: versamento ad integrazione conto economale per spese bolli e tenuta conto.;17-01-2020;46;0;647;1;Spese correnti;3;Acquisto di beni e servizi;2;Acquisto di servizi;17;Servizi finanziari;2;Oneri per servizio di tesoreria;17-01-2020;
19;1;0;"64,98";"64,98";PERSONALE DIPENDENTE - SEDE; ;STIPENDI MESE DI: GENNAIO 20;20-01-2020;20;0;29;1;Spese correnti;3;Acquisto di beni e servizi;2;Acquisto di servizi;2;"Organizzazione eventi, pubblicita` e servizi per trasferta";1;Rimborso per viaggio e trasloco;20-01-2020;
20;1;0;"21,16";"171,22";PERSONALE DIPENDENTE - SEDE; ;STIPENDI MESE DI: GENNAIO 20;20-01-2020;20;0;622;1;Spese correnti;3;Acquisto di beni e servizi;2;Acquisto di servizi;2;"Organizzazione eventi, pubblicita` e servizi per trasferta";1;Rimborso per viaggio e trasloco;20-01-2020;
20;2;0;"150,06";"171,22";PERSONALE DIPENDENTE - SEDE; ;STIPENDI MESE DI: GENNAIO 20;20-01-2020;20;0;622;1;Spese correnti;3;Acquisto di beni e servizi;2;Acquisto di servizi;2;"Organizzazione eventi, pubblicita` e servizi per trasferta";1;Rimborso per viaggio e trasloco;20-01-2020;
27;1;0;"106,80";"106,80";PERSONALE DIPENDENTE - SEDE; ;STIPENDI MESE DI: GENNAIO 20;20-01-2020;62;0;23;1;Spese correnti;3;Acquisto di beni e servizi;2;Acquisto di servizi;2;"Organizzazione eventi, pubblicita` e servizi per trasferta";1;Rimborso per viaggio e trasloco;20-01-2020;
46;1;0;"5.961,21";"5.961,21";AMMINISTRATORI COMUNALI; ;STIPENDI MESE DI: GENNAIO 20;20-01-2020;2;0;1;1;Spese correnti;3;Acquisto di beni e servizi;2;Acquisto di servizi;1;Organi e incarichi istituzionali dell'amministrazione;1;Organi istituzionali dell'amministrazione - Indennità;20-01-2020;
49;1;0;"243,41";"243,41";SERVIZIO ELETTRICO NAZIONALE SpA;7134285639;SALDO Fatt.n. 263556805005527  del 09/12/2019 SERVIZIO ELETTRICO: NOV. 2019;20-01-2020;310;0;338;1;Spese correnti;3;Acquisto di beni e servizi;2;Acquisto di servizi;5;Utenze e canoni;4;Energia elettrica;20-01-2020;
50;1;0;"433,31";"433,31";SERVIZIO ELETTRICO NAZIONALE SpA;7134285639;SALDO Fatt.n. 263558703001127  del 09/12/2019 SERVIZIO ELETTRICO: NOV. 2019;20-01-2020;530;0;340;1;Spese correnti;3;Acquisto di beni e servizi;2;Acquisto di servizi;5;Utenze e canoni;4;Energia elettrica;20-01-2020;
51;1;0;"599,07";"599,07";SERVIZIO ELETTRICO NAZIONALE SpA;7134285639;SALDO Fatt.n. 263556202002927  del 09/12/2019 SERVIZIO ELETTRICO: NOV. 2019;20-01-2020;34;0;333;1;Spese correnti;3;Acquisto di beni e servizi;2;Acquisto di servizi;5;Utenze e canoni;4;Energia elettrica;20-01-2020;
52;1;0;"219,55";"1.808,16";SERVIZIO ELETTRICO NAZIONALE SpA;7134285639;SALDO Fatt.n. 263551155002027  del 09/12/2019 SERVIZIO ELETTRICO : NOV. 2019;20-01-2020;235;0;335;1;Spese correnti;3;Acquisto di beni e servizi;2;Acquisto di servizi;5;Utenze e canoni;4;Energia elettrica;20-01-2020;
52;2;0;"1.588,61";"1.808,16";SERVIZIO ELETTRICO NAZIONALE SpA;7134285639;SALDO Fatt.n. 263554302002027  del 09/12/2019 SERVIZIO ELETTRICO: NOV. 2019;20-01-2020;235;0;335;1;Spese correnti;3;Acquisto di beni e servizi;2;Acquisto di servizi;5;Utenze e canoni;4;Energia elettrica;20-01-2020;
53;1;0;"664,34";"664,34";SERVIZIO ELETTRICO NAZIONALE SpA;7134285639;SALDO Fatt.n. 263552205013419  del 04/01/2020 SERVIZIO ELETTRICO: DIC. 2019;20-01-2020;561;2;341;1;Spese correnti;3;Acquisto di beni e servizi;2;Acquisto di servizi;5;Utenze e canoni;4;Energia elettrica;20-01-2020;
54;1;0;"848,80";"848,80";SERVIZIO ELETTRICO NAZIONALE SpA;7134285639;SALDO Fatt.n. 263557855000537  del 09/12/2019 SERVIZIO ELETTRICO: NOV. 2019;20-01-2020;530;0;340;1;Spese correnti;3;Acquisto di beni e servizi;2;Acquisto di servizi;5;Utenze e canoni;4;Energia elettrica;20-01-2020;
55;1;0;"21,00";"1.329,90";SERVIZIO ELETTRICO NAZIONALE SpA;7134285639;SALDO Fatt.n. 263552355071024  del 04/01/2020 SERVIZIO ELETTRICO: DIC. 2019-GENN 2020;20-01-2020;600;0;342;1;Spese correnti;3;Acquisto di beni e servizi;2;Acquisto di servizi;5;Utenze e canoni;4;Energia elettrica;20-01-2020;
55;2;0;"42,46";"1.329,90";SERVIZIO ELETTRICO NAZIONALE SpA;7134285639;SALDO Fatt.n. 263552955086024  del 04/01/2020 SERVIZIO ELETTRICO: DIC 2019-GENN 2020;20-01-2020;600;0;342;1;Spese correnti;3;Acquisto di beni e servizi;2;Acquisto di servizi;5;Utenze e canoni;4;Energia elettrica;20-01-2020;
55;3;0;"57,35";"1.329,90";SERVIZIO ELETTRICO NAZIONALE SpA;7134285639;SALDO Fatt.n. 263556405046124  del 09/12/2019 SERVIZIO ELETTRICO: NOV. 2019;20-01-2020;600;0;342;1;Spese correnti;3;Acquisto di beni e servizi;2;Acquisto di servizi;5;Utenze e canoni;4;Energia elettrica;20-01-2020;
55;4;0;"63,43";"1.329,90";SERVIZIO ELETTRICO NAZIONALE SpA;7134285639;SALDO Fatt.n. 263551302001024  del 04/01/2020 SERVIZIO ELETTRICO: DIC. 2019-GENN 2020;20-01-2020;600;0;342;1;Spese correnti;3;Acquisto di beni e servizi;2;Acquisto di servizi;5;Utenze e canoni;4;Energia elettrica;20-01-2020;
55;5;0;"545,16";"1.329,90";SERVIZIO ELETTRICO NAZIONALE SpA;7134285639;SALDO Fatt.n. 263556206005824  del 04/01/2020 SERVIZIO ELETTRICO: DIC. 2019 - GENN 2020;20-01-2020;600;0;342;1;Spese correnti;3;Acquisto di beni e servizi;2;Acquisto di servizi;5;Utenze e canoni;4;Energia elettrica;20-01-2020;
55;6;0;"600,50";"1.329,90";SERVIZIO ELETTRICO NAZIONALE SpA;7134285639;SALDO Fatt.n. 263555226004534  del 09/12/2019 SERVIZIO ELETTRICO: NOV. 2019;20-01-2020;600;0;342;1;Spese correnti;3;Acquisto di beni e servizi;2;Acquisto di servizi;5;Utenze e canoni;4;Energia elettrica;20-01-2020;
56;1;0;"12.410,72";"24.821,44";Mobilita' di Marca S.P.A.;7976331491;SALDO Fatt.n. 001030  del 30/11/2019 TRASPORTO SCOLASTICO - NOVEMBRE 2019;20-01-2020;275;1;376;1;Spese correnti;3;Acquisto di beni e servizi;2;Acquisto di servizi;15;Contratti di servizio pubblico;2;Contratti di servizio di trasporto scolastico;20-01-2020;
56;2;0;"12.410,72";"24.821,44";Mobilita' di Marca S.P.A.;7976331491;SALDO Fatt.n. 001079  del 31/12/2019 TRASPORTO SCOLATICO - DICEMBRE 2019;20-01-2020;275;1;376;1;Spese correnti;3;Acquisto di beni e servizi;2;Acquisto di servizi;15;Contratti di servizio pubblico;2;Contratti di servizio di trasporto scolastico;20-01-2020;
57;1;0;"491,62";"491,62";IPER TOSANO CEREA S.R.L.;Z972B09AE6;SALDO Fatt.n. 00400099015898  del 09/12/2019 ACQUISTO BENI A FAVORE ANZIANI;20-01-2020;578;0;591;1;Spese correnti;3;Acquisto di beni e servizi;1;Acquisto di beni;2;Altri beni di consumo;999;Altri beni e materiali di consumo n.a.c.;20-01-2020;
58;1;0;"769,92";"769,92";NOIGROUP Coop. Soc. a R.L.;ZDE2A28443;SALDO Fatt.n. 941  del 30/11/2019 APERTURA-CHIUSURA BIGLIETTERIA MUSEO - NOVEMBRE 2019;20-01-2020;303;0;490;1;Spese correnti;3;Acquisto di beni e servizi;2;Acquisto di servizi;99;Altri servizi;999;Altri servizi diversi n.a.c.;20-01-2020;
59;1;0;"1.440,00";"2.880,00";NOIGROUP Coop. Soc. a R.L.;Z5F268727B;SALDO Fatt.n. 912  del 30/11/2019 SERVIZIO GESTIONE BIBLIOTECA - NOVEMBRE 2019;20-01-2020;302;1;553;1;Spese correnti;3;Acquisto di beni e servizi;2;Acquisto di servizi;16;Servizi amministrativi;999;Altre spese per servizi amministrativi;20-01-2020;
59;2;0;"1.440,00";"2.880,00";NOIGROUP Coop. Soc. a R.L.;Z5F268727B;SALDO Fatt.n. 983  del 31/12/2019 SERVIZIO GESTIONE BIBLIOTECA - DICEMBRE 2019;20-01-2020;302;1;553;1;Spese correnti;3;Acquisto di beni e servizi;2;Acquisto di servizi;16;Servizi amministrativi;999;Altre spese per servizi amministrativi;20-01-2020;
60;1;0;"385,00";"385,00";MELCHIORI EGIDIO;Z6528FCC74;SALDO Fatt.n. 000037/PA  del 10/12/2019 FORNITURA FRANGISOLE PER PLESSO SCOLASTICO;20-01-2020;745;0;529;2;Spese in conto capitale;2;Investimenti fissi lordi e acquisto di terreni;1;Beni materiali;9;Beni immobili;3;Fabbricati ad uso scolastico;20-01-2020;
61;1;0;"123,22";"123,22";FERRONATO S.R.L.;Z7C26AD935;SALDO Fatt.n. P7  del 30/11/2019 FORNITURA MATERIALI;20-01-2020;1007;0;296;2;Spese in conto capitale;2;Investimenti fissi lordi e acquisto di terreni;1;Beni materiali;9;Beni immobili;12;Infrastrutture stradali;20-01-2020;
62;1;0;"650,52";"650,52";BERNARDI DOMENICO;Z4B29594D1;SALDO Fatt.n. FPA 14/19  del 11/12/2019 INCARICO PROFESSIONISTA PLESSO SCOLASTICO;20-01-2020;64;1;578;1;Spese correnti;3;Acquisto di beni e servizi;2;Acquisto di servizi;11;Prestazioni professionali e specialistiche;999;Altre prestazioni professionali e specialistiche n.a.c.;20-01-2020;
63;1;0;"1.620,00";"1.620,00";CASA DI RIPOSO 'AITA'; ;SALDO Fatt.n. 574/B  del 09/12/2019 RETTA PER ANZIANI;20-01-2020;560;0;31;1;Spese correnti;3;Acquisto di beni e servizi;2;Acquisto di servizi;15;Contratti di servizio pubblico;8;Contratti di servizio di assistenza sociale residenziale e semiresidenziale;20-01-2020;
64;1;0;"361,80";"361,80";OPERE PIE D'ONIGO; ;SALDO Fatt.n. 447/2  del 30/11/2019 RETTA PER ANZIANI;20-01-2020;560;0;32;1;Spese correnti;3;Acquisto di beni e servizi;2;Acquisto di servizi;15;Contratti di servizio pubblico;8;Contratti di servizio di assistenza sociale residenziale e semiresidenziale;20-01-2020;
65;1;0;"1.641,40";"1.641,40";CENTRO RESIDENZIALE PER ANZIANI DOMENICO SARTOR; ;SALDO Fatt.n. 354/E  del 30/11/2019 RETTA PER ANZIANI;20-01-2020;560;0;568;1;Spese correnti;3;Acquisto di beni e servizi;2;Acquisto di servizi;15;Contratti di servizio pubblico;8;Contratti di servizio di assistenza sociale residenziale e semiresidenziale;20-01-2020;
66;1;0;"62,53";"139,62";CARROZZERIA CARRON S.R.L.;Z692AFDFFA;SALDO Fatt.n. 619  del 12/12/2019 RIPARAZIONE AUTO COMUNALI;20-01-2020;179;1;570;1;Spese correnti;3;Acquisto di beni e servizi;2;Acquisto di servizi;9;Manutenzione ordinaria e riparazioni;1;"Manutenzione ordinaria e riparazioni di mezzi di trasporto ad uso civile, di sicurezza e ordine pubblico";20-01-2020;
66;2;0;"77,09";"139,62";CARROZZERIA CARRON S.R.L.;Z692AFDFFA;SALDO Fatt.n. 620  del 12/12/2019 RIPARAZIONE AUTO COMUNALI;20-01-2020;179;1;570;1;Spese correnti;3;Acquisto di beni e servizi;2;Acquisto di servizi;9;Manutenzione ordinaria e riparazioni;1;"Manutenzione ordinaria e riparazioni di mezzi di trasporto ad uso civile, di sicurezza e ordine pubblico";20-01-2020;
67;1;0;"515,55";"515,55";UNA CASA PER L'UOMO - SOCIETA' COOPERATIVA SOCIALE;ZA32468D08;SALDO Fatt.n. FE/0000456  del 30/11/2019 SPESE PER PRESTAZIONI SOCIALI - NOVEMBRE 2019;20-01-2020;559;0;334;1;Spese correnti;3;Acquisto di beni e servizi;2;Acquisto di servizi;99;Altri servizi;999;Altri servizi diversi n.a.c.;20-01-2020;
68;1;0;"153,27";"153,27";MANCOR SPA - LIBRERIA PALAZZO ROBERTI;Z522AF4E8D;SALDO Fatt.n. 40190  del 12/12/2019 LIBRI DI TESTO;20-01-2020;304;0;553;1;Spese correnti;3;Acquisto di beni e servizi;1;Acquisto di beni;1;"Giornali, riviste e pubblicazioni";2;Pubblicazioni;20-01-2020;
69;1;0;"344,77";"344,77";GREEN TELECOMUNICAZIONI S.P.A.;Z40279DD24;SALDO Fatt.n. E23132  del 12/12/2019 SERVIZI DI TELEFONIA;20-01-2020;34;0;136;1;Spese correnti;3;Acquisto di beni e servizi;2;Acquisto di servizi;5;Utenze e canoni;1;Telefonia fissa;20-01-2020;
70;1;0;"442,86";"442,86";SICURITALIA IVRI S.P.A.;Z3827208DE;ACCONTO Fatt.n. 9117010089  del 13/12/2019 SERVIZI PRONTO INTERVENTO;20-01-2020;310;0;93;1;Spese correnti;3;Acquisto di beni e servizi;2;Acquisto di servizi;5;Utenze e canoni;999;Utenze e canoni per altri servizi n.a.c.;20-01-2020;
71;1;0;"124,44";"124,44";SICURITALIA IVRI S.P.A.;Z3827208DE;SALDO Fatt.n. 9117010089  del 13/12/2019 SERVIZI PRONTO INTERVENTO;20-01-2020;313;2;94;1;Spese correnti;3;Acquisto di beni e servizi;2;Acquisto di servizi;5;Utenze e canoni;999;Utenze e canoni per altri servizi n.a.c.;20-01-2020;
72;1;0;"629,52";"629,52";HALLEY VENETO SRL;Z0428D198D;SALDO Fatt.n. 1/191652  del 13/12/2019 LICENZE PER USO SOFTWARE;20-01-2020;39;1;301;1;Spese correnti;3;Acquisto di beni e servizi;2;Acquisto di servizi;7;Utilizzo di beni di terzi;6;Licenze d'uso per software;20-01-2020;
73;1;0;"259,99";"259,99";F.LLI MICHIELIN S.N.C.;Z552A52C0F;SALDO Fatt.n. 21/PA  del 13/12/2019 RIPARAZIONE AUTO OPERATRICI;20-01-2020;510;3;565;1;Spese correnti;3;Acquisto di beni e servizi;2;Acquisto di servizi;9;Manutenzione ordinaria e riparazioni;1;"Manutenzione ordinaria e riparazioni di mezzi di trasporto ad uso civile, di sicurezza e ordine pubblico";20-01-2020;
74;1;0;"1.325,60";"1.325,60";A.S. DI ANDREATTA GIUSEPPE & C. S.R.L.;Z692B0DDEB;SALDO Fatt.n. 0952  del 19/12/2019 INTERVENTI SULLA PUBBLICA ILLUMINAZIONE;20-01-2020;1008;3;581;2;Spese in conto capitale;2;Investimenti fissi lordi e acquisto di terreni;1;Beni materiali;9;Beni immobili;12;Infrastrutture stradali;20-01-2020;
75;1;0;"352,00";"352,00";ARTUSO PAOLA;ZED2AFE042;SALDO Fatt.n. 5PA  del 18/12/2019 INCARICHI PER MANIFESTAZIONI CULTURALI;20-01-2020;333;2;561;1;Spese correnti;3;Acquisto di beni e servizi;2;Acquisto di servizi;11;Prestazioni professionali e specialistiche;1;Interpretariato e traduzioni;20-01-2020;
76;1;0;"472,75";"472,75";VERGATI S.R.L.;Z69288A022;SALDO Fatt.n. 4801  del 18/12/2019 MANUTENZIONE ASCENSORE VILLA RUBELLI;20-01-2020;309;0;269;1;Spese correnti;3;Acquisto di beni e servizi;1;Acquisto di beni;2;Altri beni di consumo;7;Altri materiali tecnico-specialistici non sanitari;20-01-2020;
77;1;0;"677,10";"677,10";DETAS S.P.A.;Z182A3EF98;SALDO Fatt.n. 7521/00  del 20/12/2019 REVISIONE PERIODICA TELELASER PER UFF. VIGILI;20-01-2020;593;0;497;1;Spese correnti;3;Acquisto di beni e servizi;2;Acquisto di servizi;9;Manutenzione ordinaria e riparazioni;5;Manutenzione ordinaria e riparazioni di attrezzature;20-01-2020;
78;1;0;"124,31";"124,31";ASCOTRADE S.P.A.;ZBA27A07D4;SALDO Fatt.n. 1702563  del 23/12/2019 CONSUMI GAS 16/10/19-15/12/2019;20-01-2020;530;0;138;1;Spese correnti;3;Acquisto di beni e servizi;2;Acquisto di servizi;5;Utenze e canoni;6;Gas;20-01-2020;
79;1;0;"1.781,82";"1.781,82";UNICOOPER SERVIZI S.C.R.L.;Z0128215E5;SALDO Fatt.n. 2077  del 23/12/2019 PULIZIA EDIFICI COMUNALI DICEMBRE 2019;20-01-2020;34;2;462;1;Spese correnti;3;Acquisto di beni e servizi;2;Acquisto di servizi;13;Servizi ausiliari per il funzionamento dell'ente;2;Servizi di pulizia e lavanderia;20-01-2020;
80;1;0;"1.677,06";"1.677,06";ASSOCIAZIONE VOLONTARIATO A.V.A.B.; ;LIQUIDAZIONE SPESA A FAVORE DELLASSOCIAZIONE INTERPARROCHIALE VOLONTARI ASSISTENZA AMMALATI BISOGNOSI (A.V.A.B.) DI SAN ZENONE DEGLI EZZELINI PER IL SERVIZIO DI CONSEGNA PASTI A DOMICILIO - SECONDO SEMESTRE 2019.;20-01-2020;574;0;36;1;Spese correnti;4;Trasferimenti correnti;1;Trasferimenti correnti a Amministrazioni Pubbliche;4;Trasferimenti correnti a organismi interni e/o unità locali della amministrazione;1;Trasferimenti correnti a organismi interni e/o unità locali della amministrazione;20-01-2020;
81;1;0;"879,60";"879,60";Pa.L.Mer. s.c.r.l.;Z722A35B4A;SALDO Fatt.n. 3/93  del 20/12/2019 TARATURA MISURATORE DI VELOCITA - UFF. VIGLI;20-01-2020;593;0;496;1;Spese correnti;3;Acquisto di beni e servizi;2;Acquisto di servizi;9;Manutenzione ordinaria e riparazioni;5;Manutenzione ordinaria e riparazioni di attrezzature;20-01-2020;
82;1;0;"628,00";"628,00";ACCATRE S.R.L.;Z852B5A444;ACCONTO Fatt.n. 191559/1  del 30/12/2019 ATTIVITA' DI CONSERVAZIONE ALLEGATI AL PROTOCOLLO;20-01-2020;39;0;628;1;Spese correnti;3;Acquisto di beni e servizi;2;Acquisto di servizi;19;Servizi informatici e di telecomunicazioni;2;Assistenza all'utente e formazione;20-01-2020;
83;1;0;"904,00";"904,00";ACCATRE S.R.L.;Z852B5A444;ACCONTO Fatt.n. 191559/1  del 30/12/2019 ATTIVITA' DI CONSERVAZIONE ALLEGATI AL PROTOCOLLO;20-01-2020;37;0;629;1;Spese correnti;3;Acquisto di beni e servizi;1;Acquisto di beni;2;Altri beni di consumo;6;Materiale informatico;20-01-2020;
84;1;0;"645,36";"645,36";ALBERTON FERRAMENTA E CASALINGHI SNC DI ALBERTON P.& C.;ZF024B19FE;ACCONTO Fatt.n. 4/PA  del 27/12/2019 MATERIALI IN DOTAZIONE AL PERSONALE;20-01-2020;589;1;607;1;Spese correnti;3;Acquisto di beni e servizi;2;Acquisto di servizi;9;Manutenzione ordinaria e riparazioni;4;Manutenzione ordinaria e riparazioni di impianti e macchinari;20-01-2020;
85;1;0;"213,00";"213,00";ALBERTON FERRAMENTA E CASALINGHI SNC DI ALBERTON P.& C.;ZF024B19FE;SALDO Fatt.n. 4/PA  del 27/12/2019 MATERIALI IN DOTAZIONE AL PERSONALE;20-01-2020;589;0;606;1;Spese correnti;3;Acquisto di beni e servizi;1;Acquisto di beni;2;Altri beni di consumo;999;Altri beni e materiali di consumo n.a.c.;20-01-2020;
86;1;0;"732,00";"732,00";OKCS - OVER KANT CONCEPTION STUDIO S.N.C.;ZB62AFE11F;SALDO Fatt.n. 5/PA  del 27/12/2019 INTERVENTO ALLA TORRE;20-01-2020;785;0;563;2;Spese in conto capitale;2;Investimenti fissi lordi e acquisto di terreni;1;Beni materiali;10;"Beni immobili di valore culturale, storico ed artistico";8;"Musei, teatri e biblioteche di valore culturale, storico ed artistico";20-01-2020;
87;1;0;"352,58";"352,58";PROMETEO S.R.L.;Z9F2A967D0;SALDO Fatt.n. 13/2019/PA  del 09/12/2019 SERVIZI INTERNET;20-01-2020;313;3;523;1;Spese correnti;3;Acquisto di beni e servizi;2;Acquisto di servizi;13;Servizi ausiliari per il funzionamento dell'ente;999;Altri servizi ausiliari n.a.c.;20-01-2020;
88;1;0;"694,45";"694,45";KONE SPA;Z11299C38B;SALDO Fatt.n. 0094153937  del 31/12/2019 MANUTENZIONE ASCENSORE SCUOLA SECONDARIA;20-01-2020;235;1;426;1;Spese correnti;3;Acquisto di beni e servizi;2;Acquisto di servizi;9;Manutenzione ordinaria e riparazioni;5;Manutenzione ordinaria e riparazioni di attrezzature;20-01-2020;
89;1;0;"774,30";"774,30";INFOTEAM SRL;Z242B24CA5;SALDO Fatt.n. 00000003259  del 30/12/2019 RICONFIGURAZIONE RETE INTERNA SCUOLE;20-01-2020;256;0;594;1;Spese correnti;3;Acquisto di beni e servizi;1;Acquisto di beni;2;Altri beni di consumo;7;Altri materiali tecnico-specialistici non sanitari;20-01-2020;
90;1;0;"274,50";"274,50";ELA SISTEMI ELETTRONICI S.R.L.;Z4A269D4A7;SALDO Fatt.n. 20/PA  del 30/12/2019 MANUTENZIONE IMP. ALLARME-ANTINCENDIO;20-01-2020;313;1;12;1;Spese correnti;3;Acquisto di beni e servizi;2;Acquisto di servizi;9;Manutenzione ordinaria e riparazioni;9;"Manutenzione ordinaria e riparazioni di beni immobili di valore culturale, storico ed artistico";20-01-2020;
91;1;0;"256,20";"256,20";ELA SISTEMI ELETTRONICI S.R.L.;Z4A269D4A7;SALDO Fatt.n. 21/PA  del 30/12/2019 MANUTENZIONE IMPIANTO ALLARME-INCENDIO;20-01-2020;313;1;12;1;Spese correnti;3;Acquisto di beni e servizi;2;Acquisto di servizi;9;Manutenzione ordinaria e riparazioni;9;"Manutenzione ordinaria e riparazioni di beni immobili di valore culturale, storico ed artistico";20-01-2020;
92;1;0;"1.047,66";"1.047,66";INFOTEAM SRL;ZD92A1EDE2;ACCONTO Fatt.n. 00000003263  del 30/12/2019 FORNITURA FIREWALL PER PLESSI SCOLASTICI;20-01-2020;34;4;485;1;Spese correnti;3;Acquisto di beni e servizi;2;Acquisto di servizi;99;Altri servizi;999;Altri servizi diversi n.a.c.;20-01-2020;
93;1;0;"1.502,34";"1.502,34";INFOTEAM SRL;ZD92A1EDE2;SALDO Fatt.n. 00000003263  del 30/12/2019 FORNITURA FIREWALL PER PLESSI SCOLASTICI;20-01-2020;33;0;484;1;Spese correnti;3;Acquisto di beni e servizi;1;Acquisto di beni;2;Altri beni di consumo;6;Materiale informatico;20-01-2020;
94;1;0;"28,06";"28,06";SICURITALIA IVRI S.P.A.;Z3827208DE;SALDO Fatt.n. 9117010399  del 30/12/2019 SERVIZI ISPETTIVI;20-01-2020;235;0;92;1;Spese correnti;3;Acquisto di beni e servizi;2;Acquisto di servizi;5;Utenze e canoni;999;Utenze e canoni per altri servizi n.a.c.;20-01-2020;
95;1;0;"983,72";"983,72";BERNARDI DOMENICO;Z4B29594D1;SALDO Fatt.n. FPA 13/19  del 11/12/2019 INCARICO PROFESSIONISTA;20-01-2020;64;1;389;1;Spese correnti;3;Acquisto di beni e servizi;2;Acquisto di servizi;11;Prestazioni professionali e specialistiche;999;Altre prestazioni professionali e specialistiche n.a.c.;20-01-2020;
96;1;0;"24,40";"671,00";ASCO TLC S.P.A.;ZCD271B191;SALDO Fatt.n. 09041370  del 20/12/2019 UTENZE E CANONI UFF. COMUNALI;20-01-2020;34;0;646;1;Spese correnti;3;Acquisto di beni e servizi;2;Acquisto di servizi;5;Utenze e canoni;999;Utenze e canoni per altri servizi n.a.c.;20-01-2020;
96;2;0;"176,90";"671,00";ASCO TLC S.P.A.;ZCD271B191;SALDO Fatt.n. 09041372  del 20/12/2019 UTENZE E CANONI UFF. COMUNALI;20-01-2020;34;0;646;1;Spese correnti;3;Acquisto di beni e servizi;2;Acquisto di servizi;5;Utenze e canoni;999;Utenze e canoni per altri servizi n.a.c.;20-01-2020;
96;3;0;"469,70";"671,00";ASCO TLC S.P.A.;ZCD271B191;SALDO Fatt.n. 09041371  del 20/12/2019 UTENZE E CANONI UFF. COMUNALI;20-01-2020;34;0;646;1;Spese correnti;3;Acquisto di beni e servizi;2;Acquisto di servizi;5;Utenze e canoni;999;Utenze e canoni per altri servizi n.a.c.;20-01-2020;
97;1;0;"26,21";"61,65";TIM S.P.A.;Z2B2939536;SALDO Fatt.n. 8E00962284  del 05/12/2019 LINEA TELEFONICA OTT-NOV 2019;20-01-2020;252;0;393;1;Spese correnti;3;Acquisto di beni e servizi;2;Acquisto di servizi;5;Utenze e canoni;999;Utenze e canoni per altri servizi n.a.c.;20-01-2020;
97;2;0;"35,44";"61,65";TIM S.P.A.;Z2B2939536;SALDO Fatt.n. 8E00962252  del 05/12/2019 LINEA TELEFONICA OTT- NOV 2019;20-01-2020;252;0;393;1;Spese correnti;3;Acquisto di beni e servizi;2;Acquisto di servizi;5;Utenze e canoni;999;Utenze e canoni per altri servizi n.a.c.;20-01-2020;
98;1;0;"12,14";"117,00";TIM S.P.A.;ZE429271DF;ACCONTO Fatt.n. 8E00965606  del 05/12/2019 LINEA TELEFONICA OTT-NOV 2019;20-01-2020;34;0;398;1;Spese correnti;3;Acquisto di beni e servizi;2;Acquisto di servizi;5;Utenze e canoni;999;Utenze e canoni per altri servizi n.a.c.;20-01-2020;
98;2;0;"52,43";"117,00";TIM S.P.A.;ZE429271DF;SALDO Fatt.n. 8E00965128  del 05/12/2019 LINEA TELEFONICA  OTT-NOV 2019;20-01-2020;34;0;398;1;Spese correnti;3;Acquisto di beni e servizi;2;Acquisto di servizi;5;Utenze e canoni;999;Utenze e canoni per altri servizi n.a.c.;20-01-2020;
98;3;0;"52,43";"117,00";TIM S.P.A.;ZE429271DF;SALDO Fatt.n. 8E00964438  del 05/12/2019 LINEA TELEFONICA OTT-NOV 2019;20-01-2020;34;0;398;1;Spese correnti;3;Acquisto di beni e servizi;2;Acquisto di servizi;5;Utenze e canoni;999;Utenze e canoni per altri servizi n.a.c.;20-01-2020;
99;1;0;"14,07";"40,28";TIM S.P.A.;ZE429271DF;SALDO Fatt.n. 8E00965606  del 05/12/2019 LINEA TELEFONICA OTT-NOV 2019;20-01-2020;34;0;397;1;Spese correnti;3;Acquisto di beni e servizi;2;Acquisto di servizi;5;Utenze e canoni;999;Utenze e canoni per altri servizi n.a.c.;20-01-2020;
99;2;0;"26,21";"40,28";TIM S.P.A.;ZE429271DF;SALDO Fatt.n. 8E00963778  del 05/12/2019 LINEATELEFONICA OTT-NOV 219;20-01-2020;34;0;397;1;Spese correnti;3;Acquisto di beni e servizi;2;Acquisto di servizi;5;Utenze e canoni;999;Utenze e canoni per altri servizi n.a.c.;20-01-2020;
100;1;0;"26,21";"421,21";TIM S.P.A.;ZE429271DF;SALDO Fatt.n. 8E00963742  del 05/12/2019 LINEA TELEFONICA OTT-NOV 2019;20-01-2020;311;0;396;1;Spese correnti;3;Acquisto di beni e servizi;2;Acquisto di servizi;5;Utenze e canoni;999;Utenze e canoni per altri servizi n.a.c.;20-01-2020;
100;2;0;"26,21";"421,21";TIM S.P.A.;ZE429271DF;SALDO Fatt.n. 8E00961548  del 05/12/2019 LINEA TELEFONICA OTT-NOV. 2019;20-01-2020;311;0;396;1;Spese correnti;3;Acquisto di beni e servizi;2;Acquisto di servizi;5;Utenze e canoni;999;Utenze e canoni per altri servizi n.a.c.;20-01-2020;
100;3;0;"26,89";"421,21";TIM S.P.A.;ZE429271DF;SALDO Fatt.n. 8E00961723  del 05/12/2019 LINEA TELEFONICA OTT-NOV 2019;20-01-2020;311;0;396;1;Spese correnti;3;Acquisto di beni e servizi;2;Acquisto di servizi;5;Utenze e canoni;999;Utenze e canoni per altri servizi n.a.c.;20-01-2020;
100;4;0;"32,34";"421,21";TIM S.P.A.;ZE429271DF;SALDO Fatt.n. 8E00963154  del 05/12/2019 LINEA TELEFONICA OTT-NOV. 2019;20-01-2020;311;0;396;1;Spese correnti;3;Acquisto di beni e servizi;2;Acquisto di servizi;5;Utenze e canoni;999;Utenze e canoni per altri servizi n.a.c.;20-01-2020;
100;5;0;"52,43";"421,21";TIM S.P.A.;ZE429271DF;SALDO Fatt.n. 8E00962846  del 05/12/2019 LINEA TELEFONICA OTT-NOV 2019;20-01-2020;311;0;396;1;Spese correnti;3;Acquisto di beni e servizi;2;Acquisto di servizi;5;Utenze e canoni;999;Utenze e canoni per altri servizi n.a.c.;20-01-2020;
100;6;0;"52,76";"421,21";TIM S.P.A.;ZE429271DF;SALDO Fatt.n. 8E00963543  del 05/12/2019 LINEA TELEFONICA OTT-NOV 2019;20-01-2020;311;0;396;1;Spese correnti;3;Acquisto di beni e servizi;2;Acquisto di servizi;5;Utenze e canoni;999;Utenze e canoni per altri servizi n.a.c.;20-01-2020;
100;7;0;"82,42";"421,21";TIM S.P.A.;ZE429271DF;SALDO Fatt.n. 7X05167792  del 13/12/2019 LINEA TELEFONICA OTT-NOV.2019;20-01-2020;311;0;396;1;Spese correnti;3;Acquisto di beni e servizi;2;Acquisto di servizi;5;Utenze e canoni;999;Utenze e canoni per altri servizi n.a.c.;20-01-2020;
100;8;0;"121,95";"421,21";TIM S.P.A.;ZE429271DF;SALDO Fatt.n. 8E00964550  del 05/12/2019 LINEA TELEFONICA OTT-NOV. 2019;20-01-2020;311;0;396;1;Spese correnti;3;Acquisto di beni e servizi;2;Acquisto di servizi;5;Utenze e canoni;999;Utenze e canoni per altri servizi n.a.c.;20-01-2020;
101;1;0;"70,92";"452,00";TIM S.P.A.;ZE429271DF;SALDO Fatt.n. 8E00964395  del 05/12/2019 LINEA TELEFONICA OTT-NOV.2019;20-01-2020;310;0;395;1;Spese correnti;3;Acquisto di beni e servizi;2;Acquisto di servizi;5;Utenze e canoni;999;Utenze e canoni per altri servizi n.a.c.;20-01-2020;
101;2;0;"381,08";"452,00";TIM S.P.A.;ZE429271DF;ACCONTO Fatt.n. 4220420800052794  del 05/12/2019 LINEA TELEFONICA OTT-NOV 2019;20-01-2020;310;0;395;1;Spese correnti;3;Acquisto di beni e servizi;2;Acquisto di servizi;5;Utenze e canoni;999;Utenze e canoni per altri servizi n.a.c.;20-01-2020;
102;1;0;"452,00";"452,00";TIM S.P.A.;ZE429271DF;ACCONTO Fatt.n. 4220420800052794  del 05/12/2019 LINEA TELEFONICA OTT-NOV 2019;20-01-2020;235;0;394;1;Spese correnti;3;Acquisto di beni e servizi;2;Acquisto di servizi;5;Utenze e canoni;999;Utenze e canoni per altri servizi n.a.c.;20-01-2020;
103;1;0;"125,39";"125,39";TIM S.P.A.;ZE429271DF;SALDO Fatt.n. 4220420800052794  del 05/12/2019 LINEA TELEFONICA OTT-NOV 2019;20-01-2020;34;0;398;1;Spese correnti;3;Acquisto di beni e servizi;2;Acquisto di servizi;5;Utenze e canoni;999;Utenze e canoni per altri servizi n.a.c.;20-01-2020;
104;1;0;"782,93";"782,93";LA FONTESE DI GIANNI BROLESE & C. S.A.S.; ;RIMBORSO SPESA PER FORNITURA GRATUITA DEI LIBRI DI TESTO AI CITTADINI RESIDENTI NEL COMUNE ED ISCRITTI ALLA SCUOLA PRIMARIA PER LANNO SCOLASTICO 2019/2020 - VEDI NOTA DEL 18/10/2019..;21-01-2020;239;0;518;1;Spese correnti;3;Acquisto di beni e servizi;1;Acquisto di beni;1;"Giornali, riviste e pubblicazioni";2;Pubblicazioni;21-01-2020;
106;1;0;"106,50";"106,50";OMESSO NOMINATIVO NEL RISPETTO DELLA NORMATIVA SULLA PROTEZIONE DATI PERSONALI; ;FATTURA N. 648/B DEL 31/12/19 CASA DI RIPOSO AITA - PASTI MESE DICEMBRE 2019.;21-01-2020;576;0;536;1;Spese correnti;4;Trasferimenti correnti;2;Trasferimenti correnti a Famiglie;2;Interventi assistenziali;999;Altri assegni e sussidi assistenziali;21-01-2020;
107;1;0;"77,00";"77,00";OMESSO NOMINATIVO NEL RISPETTO DELLA NORMATIVA SULLA PROTEZIONE DATI PERSONALI; ;ACCONTO FATTURA N. 652/B DEL 31/12/2019 CASA DI RIPOSO AITA - PASTI DICEMBRE 2019.;21-01-2020;576;0;501;1;Spese correnti;4;Trasferimenti correnti;2;Trasferimenti correnti a Famiglie;2;Interventi assistenziali;999;Altri assegni e sussidi assistenziali;21-01-2020;
108;1;0;"218,50";"218,50";OMESSO NOMINATIVO NEL RISPETTO DELLA NORMATIVA SULLA PROTEZIONE DATI PERSONALI; ;SALDO FATTURA N. 652/B DEL 31/12/2019 CASA DI RIPOSO AITA - PASTI DICEMBRE 2019.;21-01-2020;576;0;501;1;Spese correnti;4;Trasferimenti correnti;2;Trasferimenti correnti a Famiglie;2;Interventi assistenziali;999;Altri assegni e sussidi assistenziali;21-01-2020;
109;1;0;"4.460,00";"4.460,00";O.D.V. PROTEZIONE CIVILE DI SAN ZENONE DEGLI EZZELINI; ;LIQUIDAZIONE DEL DECIMO ACCONTO DEL CONTRIBUTO AL GRUPPO COMUNALE DI PROTEZIONE CIVILE DI SAN ZENONE DEGLI EZZELINI - ANNO 2019.;21-01-2020;382;1;566;1;Spese correnti;4;Trasferimenti correnti;1;Trasferimenti correnti a Amministrazioni Pubbliche;4;Trasferimenti correnti a organismi interni e/o unità locali della amministrazione;1;Trasferimenti correnti a organismi interni e/o unità locali della amministrazione;21-01-2020;
110;1;0;"5.435,70";"5.435,70";COMUNE DI ASOLO; ;CONVENZIONE PER LA GESTIONE DELLO SPORTELLO IMMIGRATI - LIQUIDAZIONE SPESA PER QUOTA ANNO 2019.;21-01-2020;575;1;349;1;Spese correnti;4;Trasferimenti correnti;1;Trasferimenti correnti a Amministrazioni Pubbliche;2;Trasferimenti correnti a Amministrazioni Locali;3;Trasferimenti correnti a Comuni;21-01-2020;
111;1;0;"120,00";"120,00";A.N.U.S.C.A. - ASSOCIAZIONE  NAZIONALE UFFICIALI DI STATO CIVILE E ANAGRAFE;Z9A2AEAA9C;SALDO Fatt.n. 3366E  del 31/12/2019 PARTECIPAZIONE A CORSO DIP. ANNAGRAFE;21-01-2020;84;0;546;1;Spese correnti;3;Acquisto di beni e servizi;2;Acquisto di servizi;4;Acquisto di servizi per formazione e addestramento del personale dell'ente;999;Acquisto di servizi per altre spese per formazione e addestramento n.a.c.;21-01-2020;
112;1;0;"154,00";"154,00";U.L.S.S.   N. 2 MARCA TREVIGIANA; ;IMPEGNO DI SPESA DELLE PRESTAZIONI EFFETTUATE DAL SERVIZIO VETERINARIO DELLAZIENDA ULSS 2 MARCA TREVIGIANA PRESSO IL CANILE SANITARIO.;21-01-2020;180;0;238;1;Spese correnti;3;Acquisto di beni e servizi;2;Acquisto di servizi;15;Contratti di servizio pubblico;11;Contratti di servizio per la lotta al randagismo;21-01-2020;
113;1;0;"298,00";"298,00";ACCATRE S.R.L.;Z852B5A444;SALDO Fatt.n. 191559/1  del 30/12/2019 ATTIVITA' DI CONSERVAZIONE ALLEGATI AL PROTOCOLLO;23-01-2020;39;0;628;1;Spese correnti;3;Acquisto di beni e servizi;2;Acquisto di servizi;19;Servizi informatici e di telecomunicazioni;2;Assistenza all'utente e formazione;23-01-2020;
114;1;0;"230,00";"230,00";A.N.U.T.E.L. - ASSOCIAZ. NAZ. UFF. TRIBUTI ENTI LOCALI; ;IMPEGNO E LIQUIDAZIONE QUOTA ASSOCIATIVA A.N.U.T.E.L. ANNO 2020.;24-01-2020;51;1;10;1;Spese correnti;3;Acquisto di beni e servizi;2;Acquisto di servizi;99;Altri servizi;3;Quote di associazioni;24-01-2020;
115;1;0;"1.015,56";"1.015,56";KIRIKU' SOCIETA' COOPERATIVA SOCIALE ONLUS;Z6D274937A;ACCONTO Fatt.n. 339  del 31/12/2019 SPAZIO EDUCATIVO POMERIDIANO - DICEMBRE 2019;24-01-2020;559;0;106;1;Spese correnti;3;Acquisto di beni e servizi;2;Acquisto di servizi;99;Altri servizi;999;Altri servizi diversi n.a.c.;24-01-2020;
116;1;0;"169,26";"169,26";KIRIKU' SOCIETA' COOPERATIVA SOCIALE ONLUS;Z6D274937A;SALDO Fatt.n. 339  del 31/12/2019 SPAZIO EDUCATIVO POMERIDIANO - DICEMBRE 2019;24-01-2020;559;0;106;1;Spese correnti;3;Acquisto di beni e servizi;2;Acquisto di servizi;99;Altri servizi;999;Altri servizi diversi n.a.c.;24-01-2020;
117;1;0;"991,20";"991,20";KIRIKU' SOCIETA' COOPERATIVA SOCIALE ONLUS;ZC12810421;SALDO Fatt.n. 325  del 31/12/2019 PRESTAZIONI SOCIALI - DICEMBRE 2019;24-01-2020;559;0;184;1;Spese correnti;3;Acquisto di beni e servizi;2;Acquisto di servizi;99;Altri servizi;999;Altri servizi diversi n.a.c.;24-01-2020;
118;1;0;"1.134,00";"1.134,00";KIRIKU' SOCIETA' COOPERATIVA SOCIALE ONLUS; ;SALDO Fatt.n. 330  del 31/12/2019 PRESTAZIONI SOCIALI - DICEMBRE 2019;24-01-2020;559;0;95;1;Spese correnti;3;Acquisto di beni e servizi;2;Acquisto di servizi;99;Altri servizi;999;Altri servizi diversi n.a.c.;24-01-2020;
119;1;0;"515,55";"515,55";UNA CASA PER L'UOMO - SOCIETA' COOPERATIVA SOCIALE;ZA32468D08;SALDO Fatt.n. FE/0000504  del 31/12/2019 PROGETTO ACCOGL. ABITATIVA - DICEMBRE 2019;24-01-2020;559;0;334;1;Spese correnti;3;Acquisto di beni e servizi;2;Acquisto di servizi;99;Altri servizi;999;Altri servizi diversi n.a.c.;24-01-2020;
120;1;0;"1.598,95";"1.598,95";CENTRO RESIDENZIALE PER ANZIANI DOMENICO SARTOR; ;SALDO Fatt.n. 386/E  del 31/12/2019 PRESTAZIONI SOCIALI - DICEMBRE 2019;24-01-2020;560;0;568;1;Spese correnti;3;Acquisto di beni e servizi;2;Acquisto di servizi;15;Contratti di servizio pubblico;8;Contratti di servizio di assistenza sociale residenziale e semiresidenziale;24-01-2020;
121;1;0;"1.674,00";"1.674,00";CASA DI RIPOSO 'AITA'; ;SALDO Fatt.n. 663/B  del 31/12/2019 PRESTAZIONI SOCIALI L.V. - DICEMBRE 2019;24-01-2020;560;0;31;1;Spese correnti;3;Acquisto di beni e servizi;2;Acquisto di servizi;15;Contratti di servizio pubblico;8;Contratti di servizio di assistenza sociale residenziale e semiresidenziale;24-01-2020;
122;1;0;"1.186,96";"1.186,96";NOIGROUP Coop. Soc. a R.L.;ZDE2A28443;SALDO Fatt.n. 998  del 31/12/2019 APERTURA/CHIUSURA MUSEO - DICEMBRE 2019;24-01-2020;303;0;490;1;Spese correnti;3;Acquisto di beni e servizi;2;Acquisto di servizi;99;Altri servizi;999;Altri servizi diversi n.a.c.;24-01-2020;
123;1;0;"1.989,00";"4.329,00";CASA DI RIPOSO 'AITA'; ;SALDO Fatt.n. 5/B  del 16/01/2020 SERVIZIO DI A.D. - DICEMBRE 2019;24-01-2020;562;1;240;1;Spese correnti;3;Acquisto di beni e servizi;2;Acquisto di servizi;15;Contratti di servizio pubblico;9;Contratti di servizio di assistenza sociale domiciliare;24-01-2020;
123;2;0;"2.340,00";"4.329,00";CASA DI RIPOSO 'AITA'; ;SALDO Fatt.n. 594/B  del 31/12/2019 SERVIZIO DI A.D. - NOVEMBRE 2019;24-01-2020;562;1;240;1;Spese correnti;3;Acquisto di beni e servizi;2;Acquisto di servizi;15;Contratti di servizio pubblico;9;Contratti di servizio di assistenza sociale domiciliare;24-01-2020;
124;1;0;"4.078,13";"4.078,13";CASA DI RIPOSO 'AITA'; ;ACCONTO Fatt.n. 728/C  del 20/12/2019 FORNITURA PASTI MENSA SCUOLE - DICEMBRE 2019;24-01-2020;274;1;54;1;Spese correnti;3;Acquisto di beni e servizi;2;Acquisto di servizi;15;Contratti di servizio pubblico;6;Contratti di servizio per le mense scolastiche;24-01-2020;
125;1;0;"1.493,10";"1.493,10";CASA DI RIPOSO 'AITA'; ;SALDO Fatt.n. 728/C  del 20/12/2019 FORNITURA PASTI MENSA SCUOLE - DICEMBRE 2019;24-01-2020;274;1;54;1;Spese correnti;3;Acquisto di beni e servizi;2;Acquisto di servizi;15;Contratti di servizio pubblico;6;Contratti di servizio per le mense scolastiche;24-01-2020;
126;1;0;"5.456,00";"5.456,00";Mobilita' di Marca S.P.A.;Z4C29A7A20;SALDO Fatt.n. 001090  del 31/12/2019 SERVIZIO BUS NAVETTA PER SCUOLE - SETT.-DIC. 2019;24-01-2020;275;1;434;1;Spese correnti;3;Acquisto di beni e servizi;2;Acquisto di servizi;15;Contratti di servizio pubblico;2;Contratti di servizio di trasporto scolastico;24-01-2020;
127;1;0;"315,50";"315,50";POSTE ITALIANE SPA - PROVENTI POLO LOGISTICO;Z6F2648DBC;SALDO Fatt.n. 8720000142  del 16/01/2020 PRODOTTI POSTALI DICEMBRE 2019;24-01-2020;34;3;535;1;Spese correnti;3;Acquisto di beni e servizi;2;Acquisto di servizi;16;Servizi amministrativi;2;Spese postali;24-01-2020;
128;1;0;"5.500,00";"5.500,00";F.LLI TRENTIN DI TRENTIN ANDREA & VALTER S.N.C.;Z492B2A122;"SALDO Fatt.n. 0003  del 07/01/2020 POSA IN OPERA MOBILI AL MUSEO MULT,";24-01-2020;782;0;602;2;Spese in conto capitale;2;Investimenti fissi lordi e acquisto di terreni;1;Beni materiali;5;Attrezzature;999;Attrezzature n.a.c.;24-01-2020;
129;1;0;"2.891,53";"2.891,53";BIM PIAVE NUOVE ENERGIE S.R.L.; ;LIQUIDAZIONE COSTI PER ADESIONE AL SERVIZIO UNIPASS ANNO 2019 AL CONSORZIO B.I.M. PIAVE DI TREVISO.;24-01-2020;651;0;3;1;Spese correnti;4;Trasferimenti correnti;1;Trasferimenti correnti a Amministrazioni Pubbliche;2;Trasferimenti correnti a Amministrazioni Locali;18;Trasferimenti correnti a Consorzi di enti locali;24-01-2020;
130;1;0;"-15.400,00";"15.400,00";TERMOIDRAULICA SERRAGLIO S.A.S. DI S. SERRAGLIO & C.;Z54291A26B;SALDO Fatt.n. 59  del 31/12/2019 NOTA DI CREDITO A STORNO FT N. 57 DEL 31.12.2019;24-01-2020;1008;3;542;2;Spese in conto capitale;2;Investimenti fissi lordi e acquisto di terreni;1;Beni materiali;9;Beni immobili;12;Infrastrutture stradali;24-01-2020;
130;2;0;"15.400,00";"15.400,00";TERMOIDRAULICA SERRAGLIO S.A.S. DI S. SERRAGLIO & C.;Z54291A26B;SALDO Fatt.n. 57  del 31/12/2019 RIFACIMENTO CIRCUITO TERMICO;24-01-2020;1008;3;542;2;Spese in conto capitale;2;Investimenti fissi lordi e acquisto di terreni;1;Beni materiali;9;Beni immobili;12;Infrastrutture stradali;24-01-2020;
130;3;0;"15.400,00";"15.400,00";TERMOIDRAULICA SERRAGLIO S.A.S. DI S. SERRAGLIO & C.;Z54291A26B;SALDO Fatt.n. 60  del 31/12/2019 RIFACIMENTO CIRCUITO TERMICO;24-01-2020;1008;3;542;2;Spese in conto capitale;2;Investimenti fissi lordi e acquisto di terreni;1;Beni materiali;9;Beni immobili;12;Infrastrutture stradali;24-01-2020;
131;1;0;"567,30";"567,30";SICURITALIA IVRI S.P.A.;Z3827208DE;SALDO Fatt.n. 9117000198  del 02/01/2020 SERVIZIO DI PRONTO INTERVENTO;27-01-2020;235;0;171;1;Spese correnti;3;Acquisto di beni e servizi;2;Acquisto di servizi;5;Utenze e canoni;999;Utenze e canoni per altri servizi n.a.c.;27-01-2020;
132;1;0;"2.200,00";"2.200,00";SARETTA GIOVANNA;Z52287FD0F;SALDO Fatt.n. 3  del 03/01/2020 INCARICO PER ELABORAZIONE DATI IVA - ANNO 2019;27-01-2020;55;0;266;1;Spese correnti;3;Acquisto di beni e servizi;2;Acquisto di servizi;17;Servizi finanziari;999;Spese per servizi finanziari n.a.c.;27-01-2020;
133;1;0;"1.560,00";"1.560,00";COSTRUZIONI IMMOBILIARI GIARDINO S.R.L.;Z172B51FAB;SALDO Fatt.n. 0000001/PA  del 02/01/2020 REALIZZAZIONE RAMPE DISABILI;27-01-2020;889;0;624;2;Spese in conto capitale;2;Investimenti fissi lordi e acquisto di terreni;1;Beni materiali;9;Beni immobili;16;Impianti sportivi;27-01-2020;
134;1;0;"514,16";"514,16";AS.COM SERVIZI DEL MANDAMENTO S.R.L.; ;SALDO Fatt.n. 00061/02  del 31/12/2019 LOCAZIONE CENTRO PER LIMPIEGO;27-01-2020;516;0;135;1;Spese correnti;3;Acquisto di beni e servizi;2;Acquisto di servizi;7;Utilizzo di beni di terzi;1;Locazione di beni immobili;27-01-2020;
135;1;0;"13,82";"13,82";SCHINDLER S.P.A.;Z6B2A6E747;ACCONTO Fatt.n. 3474300283  del 11/11/2019 RIPARAZIONE IMPIANTI ELEVATORI;27-01-2020;745;0;511;2;Spese in conto capitale;2;Investimenti fissi lordi e acquisto di terreni;1;Beni materiali;9;Beni immobili;999;Beni immobili n.a.c.;27-01-2020;
136;1;0;"577,88";"577,88";SCHINDLER S.P.A.;Z6B2A6E747;SALDO Fatt.n. 3474300283  del 11/11/2019 RIPARAZIONE IMPIANTI ELEVATORI;27-01-2020;561;3;510;1;Spese correnti;3;Acquisto di beni e servizi;2;Acquisto di servizi;13;Servizi ausiliari per il funzionamento dell'ente;999;Altri servizi ausiliari n.a.c.;27-01-2020;
137;1;0;"316,70";"316,70";GREEN TELECOMUNICAZIONI S.P.A.;Z2A15A6708;SALDO Fatt.n. E1199  del 12/01/2020 SERVIZI DI TELEFONIA;27-01-2020;34;0;136;1;Spese correnti;3;Acquisto di beni e servizi;2;Acquisto di servizi;5;Utenze e canoni;1;Telefonia fissa;27-01-2020;
140;1;0;"1.320,00";"1.320,00";A.N.U.S.C.A. - ASSOCIAZIONE  NAZIONALE UFFICIALI DI STATO CIVILE E ANAGRAFE; ;IMPEGNO E LIQUIDAZIONE QUOTA ASSOCIATIVA A.N.U.S.C.A. ANNO 2020.;28-01-2020;51;1;11;1;Spese correnti;3;Acquisto di beni e servizi;2;Acquisto di servizi;99;Altri servizi;3;Quote di associazioni;28-01-2020;
141;1;0;"13.416,15";"13.416,15";VENETO LEGNO S.R.L.;ZA22989762;SALDO Fatt.n. 1  del 16/01/2020 LAVORI DI MANUTENZIONE STRAORD. PALESTRA;28-01-2020;888;0;443;2;Spese in conto capitale;2;Investimenti fissi lordi e acquisto di terreni;1;Beni materiali;9;Beni immobili;16;Impianti sportivi;28-01-2020;
149;1;0;"1.768,54";"1.768,54";OLIVETTI S.P.A.;ZC92648F71;ACCONTO Fatt.n. A20020191000052153  del 31/12/2019 SERVIZI INFORMATICI;30-01-2020;34;0;508;1;Spese correnti;3;Acquisto di beni e servizi;2;Acquisto di servizi;5;Utenze e canoni;999;Utenze e canoni per altri servizi n.a.c.;30-01-2020;
150;1;0;"193,88";"193,88";OLIVETTI S.P.A.;ZC92648F71;SALDO Fatt.n. A20020191000052153  del 31/12/2019 SERVIZI INFORMATICI;30-01-2020;252;0;509;1;Spese correnti;3;Acquisto di beni e servizi;2;Acquisto di servizi;5;Utenze e canoni;999;Utenze e canoni per altri servizi n.a.c.;30-01-2020;
151;1;0;"588,43";"588,43";UNICOOPER SERVIZI S.C.R.L.;Z8320E86EF;ACCONTO Fatt.n. 2162  del 31/12/2019 SERVIZIO PULIZIE CENTRO "LA ROGGIA" - DICEMBRE 2019;30-01-2020;34;3;600;1;Spese correnti;3;Acquisto di beni e servizi;2;Acquisto di servizi;16;Servizi amministrativi;999;Altre spese per servizi amministrativi;30-01-2020;
152;1;0;"452,47";"452,47";UNICOOPER SERVIZI S.C.R.L.;Z8320E86EF;SALDO Fatt.n. 2162  del 31/12/2019 SERVIZIO PULIZIE CENTRO "LA ROGGIA" - DICEMBRE 2019;30-01-2020;34;2;462;1;Spese correnti;3;Acquisto di beni e servizi;2;Acquisto di servizi;13;Servizi ausiliari per il funzionamento dell'ente;2;Servizi di pulizia e lavanderia;30-01-2020;
153;1;0;"208,62";"208,62";COSTRUZIONI GENERALI GIRARDINI S.p.A.;Z182B4FF95;SALDO Fatt.n. 0000276/E  del 31/12/2019 FORNITURA CONGLOMERATO BITUMINOSO;30-01-2020;591;0;623;1;Spese correnti;3;Acquisto di beni e servizi;1;Acquisto di beni;2;Altri beni di consumo;999;Altri beni e materiali di consumo n.a.c.;30-01-2020;
154;1;0;"170,00";"170,00";OMESSO NOMINATIVO NEL RISPETTO DELLA NORMATIVA SULLA PROTEZIONE DATI PERSONALI; ;LIQUIDAZIONE DEL NONO ACCONTO DEL CONTRIBUTO AL GRUPPO O.D.V. DI PROTEZIONE CIVILE  DI SAN ZENONE DEGLI EZZELINI ANNO 2019.;30-01-2020;382;1;139;1;Spese correnti;4;Trasferimenti correnti;1;Trasferimenti correnti a Amministrazioni Pubbliche;4;Trasferimenti correnti a organismi interni e/o unità locali della amministrazione;1;Trasferimenti correnti a organismi interni e/o unità locali della amministrazione;30-01-2020;
155;1;0;"1.630,00";"1.630,00";O.D.V. PROTEZIONE CIVILE DI SAN ZENONE DEGLI EZZELINI; ;LIQUIDAZIONE DEL NONO ACCONTO DEL CONTRIBUTO AL GRUPPO O.D.V. DI PROTEZIONE CIVILE  DI SAN ZENONE DEGLI EZZELINI  - ANNO 2019.;30-01-2020;382;1;566;1;Spese correnti;4;Trasferimenti correnti;1;Trasferimenti correnti a Amministrazioni Pubbliche;4;Trasferimenti correnti a organismi interni e/o unità locali della amministrazione;1;Trasferimenti correnti a organismi interni e/o unità locali della amministrazione;30-01-2020;
156;1;0;"21,00";"7.021,25";SERVIZIO ELETTRICO NAZIONALE SpA;7134285639;SALDO Fatt.n. 263552355070024  del 04/01/2020 ENERGIA ELETTRICA: DIC.2019-GENN.2020;30-01-2020;600;0;342;1;Spese correnti;3;Acquisto di beni e servizi;2;Acquisto di servizi;5;Utenze e canoni;4;Energia elettrica;30-01-2020;
156;2;0;"51,19";"7.021,25";SERVIZIO ELETTRICO NAZIONALE SpA;7134285639;SALDO Fatt.n. 263558005001024  del 04/01/2020 ENERGIA ELETTRICA - DIC.2019 -GENN. 2020;30-01-2020;600;0;342;1;Spese correnti;3;Acquisto di beni e servizi;2;Acquisto di servizi;5;Utenze e canoni;4;Energia elettrica;30-01-2020;
156;3;0;"175,64";"7.021,25";SERVIZIO ELETTRICO NAZIONALE SpA;7134285639;SALDO Fatt.n. 263558706024524  del 11/01/2020 ENERGIA ELETTRICA: DIC. 2019-GENN 2020;30-01-2020;600;0;342;1;Spese correnti;3;Acquisto di beni e servizi;2;Acquisto di servizi;5;Utenze e canoni;4;Energia elettrica;30-01-2020;
156;4;0;"484,52";"7.021,25";SERVIZIO ELETTRICO NAZIONALE SpA;7134285639;SALDO Fatt.n. 263557405021024  del 11/01/2020 ENERGIA ELETTRICA:DIC. 2019-GENN 2020;30-01-2020;600;0;342;1;Spese correnti;3;Acquisto di beni e servizi;2;Acquisto di servizi;5;Utenze e canoni;4;Energia elettrica;30-01-2020;
156;5;0;"515,76";"7.021,25";SERVIZIO ELETTRICO NAZIONALE SpA;7134285639;SALDO Fatt.n. 263552205014424  del 11/01/2020 ENERGIA ELETTRICA: DIC.2019-GENN.2020;30-01-2020;600;0;342;1;Spese correnti;3;Acquisto di beni e servizi;2;Acquisto di servizi;5;Utenze e canoni;4;Energia elettrica;30-01-2020;
156;6;0;"734,44";"7.021,25";SERVIZIO ELETTRICO NAZIONALE SpA;7134285639;SALDO Fatt.n. 263551603001524  del 11/01/2020 ENERGIA ELETTRICA: DIC. 2019-GENN. 2020;30-01-2020;600;0;342;1;Spese correnti;3;Acquisto di beni e servizi;2;Acquisto di servizi;5;Utenze e canoni;4;Energia elettrica;30-01-2020;
156;7;0;"2.214,68";"7.021,25";SERVIZIO ELETTRICO NAZIONALE SpA;7134285639;SALDO Fatt.n. 263554153015524  del 11/01/2020 ENERGIA ELETTRICA: DIC. 2019-GENN.2020;30-01-2020;600;0;342;1;Spese correnti;3;Acquisto di beni e servizi;2;Acquisto di servizi;5;Utenze e canoni;4;Energia elettrica;30-01-2020;
156;8;0;"2.824,02";"7.021,25";SERVIZIO ELETTRICO NAZIONALE SpA;7134285639;SALDO Fatt.n. 263554753017524  del 11/01/2020 ENERGIA ELETTRICA: DIC.2019-GENN.2020;30-01-2020;600;0;342;1;Spese correnti;3;Acquisto di beni e servizi;2;Acquisto di servizi;5;Utenze e canoni;4;Energia elettrica;30-01-2020;
157;1;0;"22,05";"5.378,92";SERVIZIO ELETTRICO NAZIONALE SpA;7134285639;"SALDO Fatt.n. 263553405085024  del 11/01/2020 SERVIZIO ELETTR,: DIC. 2019-GENN. 2020";31-01-2020;600;0;342;1;Spese correnti;3;Acquisto di beni e servizi;2;Acquisto di servizi;5;Utenze e canoni;4;Energia elettrica;31-01-2020;
157;2;0;"275,35";"5.378,92";SERVIZIO ELETTRICO NAZIONALE SpA;7134285639;SALDO Fatt.n. 263552355001024  del 11/01/2020 SERVIZIO ELETTRICO: DIC. 2019 - GENN.2020;31-01-2020;600;0;342;1;Spese correnti;3;Acquisto di beni e servizi;2;Acquisto di servizi;5;Utenze e canoni;4;Energia elettrica;31-01-2020;
157;3;0;"303,49";"5.378,92";SERVIZIO ELETTRICO NAZIONALE SpA;7134285639;SALDO Fatt.n. 263554605018524  del 11/01/2020 ENERGIA ELETTR.: DIC. 2019-GENN. 2020;31-01-2020;600;0;342;1;Spese correnti;3;Acquisto di beni e servizi;2;Acquisto di servizi;5;Utenze e canoni;4;Energia elettrica;31-01-2020;
157;4;0;"374,32";"5.378,92";SERVIZIO ELETTRICO NAZIONALE SpA;7134285639;SALDO Fatt.n. 263556423052024  del 11/01/2020 SERVIZIO ELETTR.: DIC. 2019-GENN. 2020;31-01-2020;600;0;342;1;Spese correnti;3;Acquisto di beni e servizi;2;Acquisto di servizi;5;Utenze e canoni;4;Energia elettrica;31-01-2020;
157;5;0;"708,33";"5.378,92";SERVIZIO ELETTRICO NAZIONALE SpA;7134285639;SALDO Fatt.n. 263554306019024  del 11/01/2020 SERVIZIO ELETTR.: DIC. 2019-GENN. 2020;31-01-2020;600;0;342;1;Spese correnti;3;Acquisto di beni e servizi;2;Acquisto di servizi;5;Utenze e canoni;4;Energia elettrica;31-01-2020;
157;6;0;"724,40";"5.378,92";SERVIZIO ELETTRICO NAZIONALE SpA;7134285639;SALDO Fatt.n. 263552505054224  del 11/01/2020 SERVIZIO ELETT.: DIC. 2019-GENN.2020;31-01-2020;600;0;342;1;Spese correnti;3;Acquisto di beni e servizi;2;Acquisto di servizi;5;Utenze e canoni;4;Energia elettrica;31-01-2020;
157;7;0;"812,90";"5.378,92";SERVIZIO ELETTRICO NAZIONALE SpA;7134285639;SALDO Fatt.n. 263552103001024  del 11/01/2020 SERVIZIO ELETT.: DIC. 2019-GENN. 2020;31-01-2020;600;0;342;1;Spese correnti;3;Acquisto di beni e servizi;2;Acquisto di servizi;5;Utenze e canoni;4;Energia elettrica;31-01-2020;
157;8;0;"1.039,43";"5.378,92";SERVIZIO ELETTRICO NAZIONALE SpA;7134285639;SALDO Fatt.n. 263553056001024  del 11/01/2020 ENERGIA ELETTRICA: DIC. 2019-GENN. 2020;31-01-2020;600;0;342;1;Spese correnti;3;Acquisto di beni e servizi;2;Acquisto di servizi;5;Utenze e canoni;4;Energia elettrica;31-01-2020;
157;9;0;"1.118,65";"5.378,92";SERVIZIO ELETTRICO NAZIONALE SpA;7134285639;SALDO Fatt.n. 263555802001024  del 11/01/2020 SERVIZIO ELETTRICO: DIC. 2019-GENN. 2020;31-01-2020;600;0;342;1;Spese correnti;3;Acquisto di beni e servizi;2;Acquisto di servizi;5;Utenze e canoni;4;Energia elettrica;31-01-2020;
158;1;0;"79,91";"1.710,57";SERVIZIO ELETTRICO NAZIONALE SpA;7134285639;SALDO Fatt.n. 263556202001024  del 11/01/2020 SERVIZIO ELETT. : DIC. 2019-GENN.2020;31-01-2020;600;0;342;1;Spese correnti;3;Acquisto di beni e servizi;2;Acquisto di servizi;5;Utenze e canoni;4;Energia elettrica;31-01-2020;
158;2;0;"82,06";"1.710,57";SERVIZIO ELETTRICO NAZIONALE SpA;7134285639;SALDO Fatt.n. 263553105005024  del 11/01/2020 SERVIZIO ELETTR.: DIC. 2019-GENN. 2020;31-01-2020;600;0;342;1;Spese correnti;3;Acquisto di beni e servizi;2;Acquisto di servizi;5;Utenze e canoni;4;Energia elettrica;31-01-2020;
158;3;0;"106,29";"1.710,57";SERVIZIO ELETTRICO NAZIONALE SpA;7134285639;SALDO Fatt.n. 263556405000514  del 11/01/2020 SERVIZIO ELETTR.: DIC. 2019-GENN. 2020;31-01-2020;600;0;342;1;Spese correnti;3;Acquisto di beni e servizi;2;Acquisto di servizi;5;Utenze e canoni;4;Energia elettrica;31-01-2020;
158;4;0;"113,17";"1.710,57";SERVIZIO ELETTRICO NAZIONALE SpA;7134285639;SALDO Fatt.n. 263553705034524  del 11/01/2020 SERVIZIO ELETTR.: DIC. 2019-GENN. 2020;31-01-2020;600;0;342;1;Spese correnti;3;Acquisto di beni e servizi;2;Acquisto di servizi;5;Utenze e canoni;4;Energia elettrica;31-01-2020;
158;5;0;"157,34";"1.710,57";SERVIZIO ELETTRICO NAZIONALE SpA;7134285639;SALDO Fatt.n. 263555005016523  del 11/01/2020 SERVIZIO ELETTRICO: DIC. 2019-GENN. 2020;31-01-2020;600;0;342;1;Spese correnti;3;Acquisto di beni e servizi;2;Acquisto di servizi;5;Utenze e canoni;4;Energia elettrica;31-01-2020;
158;6;0;"240,84";"1.710,57";SERVIZIO ELETTRICO NAZIONALE SpA;7134285639;SALDO Fatt.n. 263551755011424  del 11/01/2020 SERVIZIO ELETTR.: DIC. 2109-GENN. 2020;31-01-2020;600;0;342;1;Spese correnti;3;Acquisto di beni e servizi;2;Acquisto di servizi;5;Utenze e canoni;4;Energia elettrica;31-01-2020;
158;7;0;"250,27";"1.710,57";SERVIZIO ELETTRICO NAZIONALE SpA;7134285639;SALDO Fatt.n. 263558205009524  del 11/01/2020 SERVIZIO ELETTR.: DIC. 2019-GENN. 2020;31-01-2020;600;0;342;1;Spese correnti;3;Acquisto di beni e servizi;2;Acquisto di servizi;5;Utenze e canoni;4;Energia elettrica;31-01-2020;
158;8;0;"319,07";"1.710,57";SERVIZIO ELETTRICO NAZIONALE SpA;7134285639;SALDO Fatt.n. 263555806046324  del 11/01/2020 SERVIZIO ELETTR.: DIC. 2019-GENN.2020;31-01-2020;600;0;342;1;Spese correnti;3;Acquisto di beni e servizi;2;Acquisto di servizi;5;Utenze e canoni;4;Energia elettrica;31-01-2020;
158;9;0;"361,62";"1.710,57";SERVIZIO ELETTRICO NAZIONALE SpA;7134285639;SALDO Fatt.n. 263553075001824  del 11/01/2020 SERVIZIO ELETTR.: DIC. 2019-GENN.2020;31-01-2020;600;0;342;1;Spese correnti;3;Acquisto di beni e servizi;2;Acquisto di servizi;5;Utenze e canoni;4;Energia elettrica;31-01-2020;
159;1;0;"87,25";"6.998,00";SERVIZIO ELETTRICO NAZIONALE SpA;7134285639;SALDO Fatt.n. 263554005004014  del 11/01/2020 SERVIZIO ELETTR.: DIC. 2019-GENN. 2020;31-01-2020;600;0;342;1;Spese correnti;3;Acquisto di beni e servizi;2;Acquisto di servizi;5;Utenze e canoni;4;Energia elettrica;31-01-2020;
159;2;0;"125,92";"6.998,00";SERVIZIO ELETTRICO NAZIONALE SpA;7134285639;SALDO Fatt.n. 263554455040024  del 11/01/2020 SERVIZIO ELETTR.: DIC. 2019-GENN.2020;31-01-2020;600;0;342;1;Spese correnti;3;Acquisto di beni e servizi;2;Acquisto di servizi;5;Utenze e canoni;4;Energia elettrica;31-01-2020;
159;3;0;"157,37";"6.998,00";SERVIZIO ELETTRICO NAZIONALE SpA;7134285639;SALDO Fatt.n. 263552655019124  del 11/01/2020 SERVIZIO ELETTRICO: DIC. 2019-GENN. 2020;31-01-2020;600;0;342;1;Spese correnti;3;Acquisto di beni e servizi;2;Acquisto di servizi;5;Utenze e canoni;4;Energia elettrica;31-01-2020;
159;4;0;"165,68";"6.998,00";SERVIZIO ELETTRICO NAZIONALE SpA;7134285639;SALDO Fatt.n. 263553255013524  del 11/01/2020 SERVIZIO ELETTR.: DIC. 2019-GENN.2020;31-01-2020;600;0;342;1;Spese correnti;3;Acquisto di beni e servizi;2;Acquisto di servizi;5;Utenze e canoni;4;Energia elettrica;31-01-2020;
159;5;0;"193,49";"6.998,00";SERVIZIO ELETTRICO NAZIONALE SpA;7134285639;SALDO Fatt.n. 263555505042024  del 11/01/2020 ENERGIA ELETTR.: DIC. 2019- GENN.2020;31-01-2020;600;0;342;1;Spese correnti;3;Acquisto di beni e servizi;2;Acquisto di servizi;5;Utenze e canoni;4;Energia elettrica;31-01-2020;
159;6;0;"214,02";"6.998,00";SERVIZIO ELETTRICO NAZIONALE SpA;7134285639;SALDO Fatt.n. 263558505000214  del 11/01/2020 SERVIZIO ELETTR.: DIC. 2019-GENN.2020;31-01-2020;600;0;342;1;Spese correnti;3;Acquisto di beni e servizi;2;Acquisto di servizi;5;Utenze e canoni;4;Energia elettrica;31-01-2020;
159;7;0;"689,63";"6.998,00";SERVIZIO ELETTRICO NAZIONALE SpA;7134285639;SALDO Fatt.n. 263557855000724  del 11/01/2020 SERVIZIO ELETT.: DIC. 2019-GENN. 2020;31-01-2020;600;0;342;1;Spese correnti;3;Acquisto di beni e servizi;2;Acquisto di servizi;5;Utenze e canoni;4;Energia elettrica;31-01-2020;
159;8;0;"901,30";"6.998,00";SERVIZIO ELETTRICO NAZIONALE SpA;7134285639;SALDO Fatt.n. 263552955069524  del 11/01/2020 SERVIZIO ELETT.: DIC. 2019-GENN.2020;31-01-2020;600;0;342;1;Spese correnti;3;Acquisto di beni e servizi;2;Acquisto di servizi;5;Utenze e canoni;4;Energia elettrica;31-01-2020;
159;9;0;"1.380,20";"6.998,00";SERVIZIO ELETTRICO NAZIONALE SpA;7134285639;SALDO Fatt.n. 263552823001124  del 11/01/2020 SERVIZIO ELETTR.: DIC. 2019-GENN. 2020;31-01-2020;600;0;342;1;Spese correnti;3;Acquisto di beni e servizi;2;Acquisto di servizi;5;Utenze e canoni;4;Energia elettrica;31-01-2020;
159;10;0;"1.472,06";"6.998,00";SERVIZIO ELETTRICO NAZIONALE SpA;7134285639;SALDO Fatt.n. 263553556070024  del 11/01/2020 SERVIZIO ELETTRICO: DIC. 2019-GENN. 2020;31-01-2020;600;0;342;1;Spese correnti;3;Acquisto di beni e servizi;2;Acquisto di servizi;5;Utenze e canoni;4;Energia elettrica;31-01-2020;
159;11;0;"1.611,08";"6.998,00";SERVIZIO ELETTRICO NAZIONALE SpA;7134285639;SALDO Fatt.n. 263557205052024  del 11/01/2020 SERVIZIO ELETTRICO: DIC. 2019-GENN. 2020;31-01-2020;600;0;342;1;Spese correnti;3;Acquisto di beni e servizi;2;Acquisto di servizi;5;Utenze e canoni;4;Energia elettrica;31-01-2020;
160;1;0;"242,66";"242,66";SERVIZIO ELETTRICO NAZIONALE SpA;7134285639;SALDO Fatt.n. 263558005001244  del 11/01/2020 ENERGIA ELETTRICA CENTRO CULTURALE: DIC. 2019-GENN.2020;31-01-2020;561;2;341;1;Spese correnti;3;Acquisto di beni e servizi;2;Acquisto di servizi;5;Utenze e canoni;4;Energia elettrica;31-01-2020;
161;1;0;"114,00";"1.188,08";SERVIZIO ELETTRICO NAZIONALE SpA;7134285639;SALDO Fatt.n. 263558703001128  del 11/01/2020 SERVIZIO ELETT. IMP. SPORTIVI: DIC. 2019;31-01-2020;530;0;340;1;Spese correnti;3;Acquisto di beni e servizi;2;Acquisto di servizi;5;Utenze e canoni;4;Energia elettrica;31-01-2020;
161;2;0;"1.074,08";"1.188,08";SERVIZIO ELETTRICO NAZIONALE SpA;7134285639;SALDO Fatt.n. 263557855000538  del 11/01/2020 SERVIZIO ELETT.: DIC. 2019-GENN.2020;31-01-2020;530;0;340;1;Spese correnti;3;Acquisto di beni e servizi;2;Acquisto di servizi;5;Utenze e canoni;4;Energia elettrica;31-01-2020;
162;1;0;"248,40";"248,40";SERVIZIO ELETTRICO NAZIONALE SpA;7134285639;SALDO Fatt.n. 263558703010014  del 11/01/2020 SERVIZIO ELETTR. MAGAZZINO: DIC. 2019-GENN. 2020;31-01-2020;71;0;334;1;Spese correnti;3;Acquisto di beni e servizi;2;Acquisto di servizi;5;Utenze e canoni;4;Energia elettrica;31-01-2020;
163;1;0;"635,21";"635,21";SERVIZIO ELETTRICO NAZIONALE SpA;7134285639;SALDO Fatt.n. 263556202002928  del 11/01/2020 SERVIZIO ELETTRICO MUNICIPIO: DIC. 2019-GENN.2020;31-01-2020;34;0;333;1;Spese correnti;3;Acquisto di beni e servizi;2;Acquisto di servizi;5;Utenze e canoni;4;Energia elettrica;31-01-2020;
164;1;0;"503,09";"503,09";SERVIZIO ELETTRICO NAZIONALE SpA;7134285639;SALDO Fatt.n. 263556805005528  del 11/01/2020 ENERGIA ELETTR. VILLA RUBELLI: DIC.2019-GENN.2020;31-01-2020;310;0;338;1;Spese correnti;3;Acquisto di beni e servizi;2;Acquisto di servizi;5;Utenze e canoni;4;Energia elettrica;31-01-2020;
165;1;0;"210,93";"2.277,70";SERVIZIO ELETTRICO NAZIONALE SpA;7134285639;SALDO Fatt.n. 263551155002028  del 11/01/2020 SERVIZIO ELETTRICO SCUOLE: DIC. 2019-GENN. 2020;31-01-2020;235;0;335;1;Spese correnti;3;Acquisto di beni e servizi;2;Acquisto di servizi;5;Utenze e canoni;4;Energia elettrica;31-01-2020;
165;2;0;"377,69";"2.277,70";SERVIZIO ELETTRICO NAZIONALE SpA;7134285639;SALDO Fatt.n. 263555804069044  del 11/01/2020 SERVIZIO ELETTRICO: DIC. 2019-GENN. 2020;31-01-2020;235;0;335;1;Spese correnti;3;Acquisto di beni e servizi;2;Acquisto di servizi;5;Utenze e canoni;4;Energia elettrica;31-01-2020;
165;3;0;"1.689,08";"2.277,70";SERVIZIO ELETTRICO NAZIONALE SpA;7134285639;SALDO Fatt.n. 263554302002028  del 11/01/2020 SERVIZIO ELETT.: DIC. 2019-GENN.2020;31-01-2020;235;0;335;1;Spese correnti;3;Acquisto di beni e servizi;2;Acquisto di servizi;5;Utenze e canoni;4;Energia elettrica;31-01-2020;
166;1;0;"94,31";"577,54";SERVIZIO ELETTRICO NAZIONALE SpA;7134285639;SALDO Fatt.n. 263553356000524  del 11/01/2020 SERVIZIO ELETTR.: DIC. 2019-GENN. 2020;31-01-2020;413;0;337;1;Spese correnti;3;Acquisto di beni e servizi;2;Acquisto di servizi;5;Utenze e canoni;4;Energia elettrica;31-01-2020;
166;2;0;"157,42";"577,54";SERVIZIO ELETTRICO NAZIONALE SpA;7134285639;SALDO Fatt.n. 263555226006524  del 11/01/2020 SERVIZIO ELETT. CIMITERO: DIC. 2019-GENN. 2020;31-01-2020;413;0;337;1;Spese correnti;3;Acquisto di beni e servizi;2;Acquisto di servizi;5;Utenze e canoni;4;Energia elettrica;31-01-2020;
166;3;0;"325,81";"577,54";SERVIZIO ELETTRICO NAZIONALE SpA;7134285639;"SALDO Fatt.n. 263557855013524  del 11/01/2020 SERVIZIO ELETT.: DIC,2019-GENN.2020";31-01-2020;413;0;337;1;Spese correnti;3;Acquisto di beni e servizi;2;Acquisto di servizi;5;Utenze e canoni;4;Energia elettrica;31-01-2020;
167;1;0;"307,00";"307,00";GAJON JENNY;Z7729D2F24;SALDO Fatt.n. 11  del 16/01/2020 RILEGATURE REGISTRI DI STATO CIVLE PER UFF. ANAGRAFE;31-01-2020;34;1;455;1;Spese correnti;3;Acquisto di beni e servizi;2;Acquisto di servizi;9;Manutenzione ordinaria e riparazioni;11;Manutenzione ordinaria e riparazioni di altri beni materiali;31-01-2020;
168;1;0;"55,63";"55,63";KUWAIT PETROLEUM ITALIA S.P.A.;Z4E197F01F;SALDO Fatt.n. PJ02065839  del 31/12/2019 CARBURANTE AUTO OPERAI - DUCEMBRE 2019;31-01-2020;590;0;156;1;Spese correnti;3;Acquisto di beni e servizi;1;Acquisto di beni;2;Altri beni di consumo;2;"Carburanti, combustibili e lubrificanti";31-01-2020;
169;1;0;"102,10";"102,10";KUWAIT PETROLEUM ITALIA S.P.A.;Z4E197F01F;ACCONTO Fatt.n. PJ02065840  del 31/12/2019 CARBURANTE AUTO UFF. SOCIALE - DICEMBRE 2019;31-01-2020;571;0;155;1;Spese correnti;3;Acquisto di beni e servizi;1;Acquisto di beni;2;Altri beni di consumo;2;"Carburanti, combustibili e lubrificanti";31-01-2020;
170;1;0;"7,87";"70,87";KUWAIT PETROLEUM ITALIA S.P.A.;Z4E197F01F;SALDO Fatt.n. PJ02065840  del 31/12/2019 CARBURANTE AUTO UFF. SOCIALE - DICEMBRE 2019;31-01-2020;179;0;154;1;Spese correnti;3;Acquisto di beni e servizi;1;Acquisto di beni;2;Altri beni di consumo;2;"Carburanti, combustibili e lubrificanti";31-01-2020;
170;2;0;"63,00";"70,87";KUWAIT PETROLEUM ITALIA S.P.A.;Z4E197F01F;SALDO Fatt.n. PJ02065841  del 31/12/2019 CARBURANTE AUTO VIGILI - DICEMBRE 2019;31-01-2020;179;0;154;1;Spese correnti;3;Acquisto di beni e servizi;1;Acquisto di beni;2;Altri beni di consumo;2;"Carburanti, combustibili e lubrificanti";31-01-2020;
171;1;0;"7.177,82";"7.177,82";COLPO NICOLO' & C. SNC;ZAA298988F;SALDO Fatt.n. 7  del 29/01/2020 SALDO LAVORI PALESTRA COMUNALE;31-01-2020;888;0;442;2;Spese in conto capitale;2;Investimenti fissi lordi e acquisto di terreni;1;Beni materiali;9;Beni immobili;16;Impianti sportivi;31-01-2020;
172;1;0;"2.685,32";"2.685,32";ACCATRE-STP S.R.L.;Z8F27CA996;ACCONTO Fatt.n. 130/1  del 28/01/2020 ADEMPIMENTI FISCALI;31-01-2020;39;2;162;1;Spese correnti;3;Acquisto di beni e servizi;2;Acquisto di servizi;19;Servizi informatici e di telecomunicazioni;10;Servizi di consulenza e prestazioni professionali ICT;31-01-2020;
173;1;0;"7.021,00";"7.021,00";ACCATRE-STP S.R.L.;Z8F27CA996;SALDO Fatt.n. 130/1  del 28/01/2020 ADEMPIMENTI FISCALI;03-02-2020;39;0;161;1;Spese correnti;3;Acquisto di beni e servizi;2;Acquisto di servizi;19;Servizi informatici e di telecomunicazioni;10;Servizi di consulenza e prestazioni professionali ICT;03-02-2020;
174;1;0;"33,00";"33,00";G.S.E. S.p.A.; ;SPESE PER G.S.E. - FOTOVOLTAICO INSTALLATO PRESSO SCUOLA MEDIA - (a compensazione con contributo statale). Vedi reversale n. 104 del 03/02/2020.;03-02-2020;27;0;589;1;Spese correnti;3;Acquisto di beni e servizi;2;Acquisto di servizi;99;Altri servizi;999;Altri servizi diversi n.a.c.;03-02-2020;
175;1;0;"71,81";"71,81";SIBEN ELETTRONICA DI SIBEN FLAVIO & C. SNC;Z2E2BAB291;SALDO Fatt.n. 77  del 22/01/2020 ACQUISTO REGISTRATORE VOCALE;03-02-2020;37;0;19;1;Spese correnti;3;Acquisto di beni e servizi;1;Acquisto di beni;2;Altri beni di consumo;7;Altri materiali tecnico-specialistici non sanitari;03-02-2020;
177;1;0;"1.412,76";"1.412,76";MyO S.P.A.;Z012B67AB5;SALDO Fatt.n. 2040/200001669  del 30/01/2020 FORNITURA STAMPATI E MATERIALI UFF. COM.LI;03-02-2020;37;0;635;1;Spese correnti;3;Acquisto di beni e servizi;1;Acquisto di beni;2;Altri beni di consumo;1;"Carta, cancelleria e stampati";03-02-2020;
180;1;0;"1.268,80";"1.268,80";ZANINOTTO LUCIO;Z0E28FD84D;SALDO Fatt.n. FATTPA 4_19  del 10/12/2019 INCARICO PROFESSIONISTA - SECONDO SEMESTRE 2019;03-02-2020;152;0;652;1;Spese correnti;3;Acquisto di beni e servizi;2;Acquisto di servizi;11;Prestazioni professionali e specialistiche;999;Altre prestazioni professionali e specialistiche n.a.c.;03-02-2020;
181;1;0;"103,60";"103,60";CONTO SERVIZIO DI TESORERIA; ;SPESE PER BANCO POSTA SERV. TESORERIA PERIODO: 01/09/2019 - 31/12/2019  - GIRO CONTABILE DA CAP. 45 SPESA A CAP. 1660 ENTRATA (VEDI REVERSALE N. 115).;05-02-2020;45;0;642;1;Spese correnti;3;Acquisto di beni e servizi;2;Acquisto di servizi;16;Servizi amministrativi;2;Spese postali;05-02-2020;
182;1;0;"129,13";"129,13";CONTO SERVIZIO POLIZIA MUNICIPALE; ;SPESE PER BANCO POSTA SERV. POLIZIA MUNICIPALE PERIODO: 01/09/2019 - 31/12/2019 - GIRO CONTABILE DA CAP. 45 SPESA A CAP. 752 ENTRATA (VEDI REVERSALE N. 116).;05-02-2020;45;0;643;1;Spese correnti;3;Acquisto di beni e servizi;2;Acquisto di servizi;16;Servizi amministrativi;2;Spese postali;05-02-2020;
185;1;0;"250,93";"250,93";LA IDROFERRAMENTA SRL;Z192700D74;SALDO Fatt.n. 9/PA  del 31/01/2020 FORNITURA FERRAMENTA;10-02-2020;591;0;571;1;Spese correnti;3;Acquisto di beni e servizi;1;Acquisto di beni;2;Altri beni di consumo;999;Altri beni e materiali di consumo n.a.c.;10-02-2020;
186;1;0;"3.741,93";"3.741,93";ASSOCIAZIONE PRO LOCO SAN ZENONE DEGLI EZZELINI; ;LIQUIDAZIONE SPESA PER ACCONTO CONTRIBUTO ALL ASSOCIAZIONE PRO LOCO PER LA PROMOZIONE E ORGANIZZAZIONE DEGLI EVENTI RELATIVI AL CARTELLONE  NATALE IN VILLA 2019.;11-02-2020;333;1;654;1;Spese correnti;4;Trasferimenti correnti;1;Trasferimenti correnti a Amministrazioni Pubbliche;4;Trasferimenti correnti a organismi interni e/o unità locali della amministrazione;1;Trasferimenti correnti a organismi interni e/o unità locali della amministrazione;11-02-2020;
187;1;0;"1.091,35";"1.091,35";ASSOCIAZIONE PRO LOCO SAN ZENONE DEGLI EZZELINI; ;LIQUIDAZIONE SPESA A SALDO CONTRIBUTO ALLASSOCIAZIONE PRO LOCO PER LA PROMOZIONE E ORGANIZZAZIONE DEGLI EVENTI RELATIVI AL CARTELLONE  NATALE IN VILLA 2019.;12-02-2020;40;3;655;1;Spese correnti;4;Trasferimenti correnti;1;Trasferimenti correnti a Amministrazioni Pubbliche;4;Trasferimenti correnti a organismi interni e/o unità locali della amministrazione;1;Trasferimenti correnti a organismi interni e/o unità locali della amministrazione;12-02-2020;
188;1;0;"104,92";"104,92";MyO S.P.A.;Z012B67AB5;SALDO Fatt.n. 2040/200002474  del 31/01/2020 FORNITURA CANCELLERIA UFFICI COMUNALI;12-02-2020;37;0;635;1;Spese correnti;3;Acquisto di beni e servizi;1;Acquisto di beni;2;Altri beni di consumo;1;"Carta, cancelleria e stampati";12-02-2020;
189;1;0;"1.122,80";"1.122,80";NOIGROUP Coop. Soc. a R.L.;ZDE2A28443;SALDO Fatt.n. 61  del 31/01/2020 SERVIZIO DI APERTURA/CHIUSURA MUSEO;12-02-2020;303;0;490;1;Spese correnti;3;Acquisto di beni e servizi;2;Acquisto di servizi;99;Altri servizi;999;Altri servizi diversi n.a.c.;12-02-2020;
190;1;0;"1.440,00";"1.440,00";NOIGROUP Coop. Soc. a R.L.;Z5F268727B;SALDO Fatt.n. 41  del 31/01/2020 SPESE GESTIONE BIBLIOTECA - GENNAIO 2020;12-02-2020;302;1;553;1;Spese correnti;3;Acquisto di beni e servizi;2;Acquisto di servizi;16;Servizi amministrativi;999;Altre spese per servizi amministrativi;12-02-2020;
191;1;0;"140,00";"140,00";SONDA COOPERATIVA SOCIALE ONLUS; ;ACCONTO Fatt.n. 377/PA/2019  del 10/12/2019 SOSTEGNO PERSONA BISOGNOSA - NOVEMBRE 2019;12-02-2020;560;0;274;1;Spese correnti;3;Acquisto di beni e servizi;2;Acquisto di servizi;15;Contratti di servizio pubblico;8;Contratti di servizio di assistenza sociale residenziale e semiresidenziale;12-02-2020;
192;1;0;"20,00";"90,00";SONDA COOPERATIVA SOCIALE ONLUS; ;ACCONTO Fatt.n. 396/PA/2019  del 27/12/2019 PRESTAZIONI SOCIALI - DICEMBRE 2019;12-02-2020;560;0;297;1;Spese correnti;3;Acquisto di beni e servizi;2;Acquisto di servizi;15;Contratti di servizio pubblico;8;Contratti di servizio di assistenza sociale residenziale e semiresidenziale;12-02-2020;
192;2;0;"70,00";"90,00";SONDA COOPERATIVA SOCIALE ONLUS; ;SALDO Fatt.n. 377/PA/2019  del 10/12/2019 SOSTEGNO PERSONA BISOGNOSA - NOVEMBRE 2019;12-02-2020;560;0;297;1;Spese correnti;3;Acquisto di beni e servizi;2;Acquisto di servizi;15;Contratti di servizio pubblico;8;Contratti di servizio di assistenza sociale residenziale e semiresidenziale;12-02-2020;
193;1;0;"190,00";"190,00";SONDA COOPERATIVA SOCIALE ONLUS; ;SALDO Fatt.n. 396/PA/2019  del 27/12/2019 PRESTAZIONI SOCIALI - DICEMBRE 2019;12-02-2020;560;0;653;1;Spese correnti;3;Acquisto di beni e servizi;2;Acquisto di servizi;15;Contratti di servizio pubblico;8;Contratti di servizio di assistenza sociale residenziale e semiresidenziale;12-02-2020;
197;1;0;"724,26";"724,26";ZEN GIORGIO; ;LIQUIDAZIONE COMPENSO PER INCARICO DI COLLABORAZIONE OCCASIONALE PER SUPPORTO AL RESPONSABILE DELLAREA ECONOMICO FINANZIARIA AL DOTT. ZEN GIORGIO - DIPENDENTE DEL COMUNE DI CASTELLO DI GODEGO. SALDO MESE DI DICEMBRE 2019.;12-02-2020;48;0;472;1;Spese correnti;3;Acquisto di beni e servizi;2;Acquisto di servizi;11;Prestazioni professionali e specialistiche;8;"Prestazioni di natura contabile, tributaria e del lavoro";12-02-2020;
198;1;0;"7.269,55";"7.269,55";CASA DI RIPOSO 'AITA'; ;SALDO Fatt.n. 45/C  del 31/01/2020 FORNITURA PASTI MENSA SCUOLE - GENNAIO 2020;12-02-2020;274;1;54;1;Spese correnti;3;Acquisto di beni e servizi;2;Acquisto di servizi;15;Contratti di servizio pubblico;6;Contratti di servizio per le mense scolastiche;12-02-2020;
199;1;0;"108,00";"108,00";PULISECCO LA PERLA di MARTINELLO MARIA ANTONIA;Z072BD932C;SALDO Fatt.n. 1  del 14/01/2020 LAVAGGIO E STIRATURA LENZUOLA PER SEGGI ELETTORALI;12-02-2020;9;2;41;1;Spese correnti;3;Acquisto di beni e servizi;1;Acquisto di beni;2;Altri beni di consumo;10;Beni per consultazioni elettorali;12-02-2020;
200;1;0;"48,80";"48,80";ELA SISTEMI ELETTRONICI S.R.L.;Z7B2BC4E87;SALDO Fatt.n. 1/PA  del 29/01/2020 FORNITURA CENTRALINA IMP. RILEV. INCENDI VILLA RUBELLI;12-02-2020;310;1;38;1;Spese correnti;3;Acquisto di beni e servizi;2;Acquisto di servizi;9;Manutenzione ordinaria e riparazioni;4;Manutenzione ordinaria e riparazioni di impianti e macchinari;12-02-2020;
201;1;0;"605,68";"605,68";BELLNET INTERNATIONAL S.R.L.;Z752BFBD5F;SALDO Fatt.n. FATTPA 190_20  del 31/01/2020 ATTIVAZIONE NUOVI NUMERI E TRAFFICO TELEFONICO - GENNAIO 2020;12-02-2020;34;0;58;1;Spese correnti;3;Acquisto di beni e servizi;2;Acquisto di servizi;5;Utenze e canoni;1;Telefonia fissa;12-02-2020;
202;1;0;"1.214,39";"1.214,39";UNICOOPER SERVIZI S.C.R.L.;ZDB2BDF192;SALDO Fatt.n. 132  del 31/01/2020 SERVIZIO PULIZIE "LA ROGGIA" - GENNAIO 2020;12-02-2020;561;4;48;1;Spese correnti;3;Acquisto di beni e servizi;2;Acquisto di servizi;9;Manutenzione ordinaria e riparazioni;8;Manutenzione ordinaria e riparazioni di beni immobili;12-02-2020;
203;1;0;"1.781,82";"1.781,82";UNICOOPER SERVIZI S.C.R.L.;ZDB2BDF192;SALDO Fatt.n. 131  del 31/01/2020 SERVIZIO PULIZIE ED. COMUNALI - GENNAIO 2020;12-02-2020;34;2;45;1;Spese correnti;3;Acquisto di beni e servizi;2;Acquisto di servizi;13;Servizi ausiliari per il funzionamento dell'ente;2;Servizi di pulizia e lavanderia;12-02-2020;
204;1;0;"1.754,60";"1.754,60";CENTRO RESIDENZIALE PER ANZIANI DOMENICO SARTOR; ;SALDO Fatt.n. 14/E  del 31/01/2020 RETTE PERSONA BISOGNOSA - GENNAIO 2020;12-02-2020;560;0;40;1;Spese correnti;3;Acquisto di beni e servizi;2;Acquisto di servizi;15;Contratti di servizio pubblico;8;Contratti di servizio di assistenza sociale residenziale e semiresidenziale;12-02-2020;
205;1;0;"1.229,45";"1.229,45";OMESSO NOMINATIVO NEL RISPETTO DELLA NORMATIVA SULLA PROTEZIONE DATI PERSONALI; ;C00151773 - COD. FORNITURA 42002312-02 RUSSO GUERRINO GIANCARLO_fatture insolute.;17-02-2020;576;0;60;1;Spese correnti;4;Trasferimenti correnti;2;Trasferimenti correnti a Famiglie;2;Interventi assistenziali;999;Altri assegni e sussidi assistenziali;17-02-2020;
214;1;0;"6,80";"6,80";PERSONALE DIPENDENTE - SEDE; ;STIPENDI MESE DI: FEBBRAIO 20;17-02-2020;62;0;15;1;Spese correnti;3;Acquisto di beni e servizi;2;Acquisto di servizi;2;"Organizzazione eventi, pubblicita` e servizi per trasferta";1;Rimborso per viaggio e trasloco;17-02-2020;
217;1;0;"4,45";"4,45";PERSONALE DIPENDENTE - SEDE; ;STIPENDI MESE DI: FEBBRAIO 20;17-02-2020;83;0;16;1;Spese correnti;3;Acquisto di beni e servizi;2;Acquisto di servizi;2;"Organizzazione eventi, pubblicita` e servizi per trasferta";2;Indennità di missione e di trasferta;17-02-2020;
223;1;0;"6,10";"6,10";PERSONALE DIPENDENTE - SEDE; ;STIPENDI MESE DI: FEBBRAIO 20;17-02-2020;174;0;17;1;Spese correnti;3;Acquisto di beni e servizi;2;Acquisto di servizi;2;"Organizzazione eventi, pubblicita` e servizi per trasferta";1;Rimborso per viaggio e trasloco;17-02-2020;
237;1;0;"5.961,21";"5.961,21";AMMINISTRATORI COMUNALI; ;STIPENDI MESE DI: FEBBRAIO 20;17-02-2020;2;0;1;1;Spese correnti;3;Acquisto di beni e servizi;2;Acquisto di servizi;1;Organi e incarichi istituzionali dell'amministrazione;1;Organi istituzionali dell'amministrazione - Indennità;17-02-2020;
240;1;0;"28,06";"28,06";SICURITALIA IVRI S.P.A.;Z3827208DE;SALDO Fatt.n. 9117000797  del 31/01/2020 SERVIZI ISPETTIVI - GENNAIO 2020;18-02-2020;235;0;171;1;Spese correnti;3;Acquisto di beni e servizi;2;Acquisto di servizi;5;Utenze e canoni;999;Utenze e canoni per altri servizi n.a.c.;18-02-2020;
241;1;0;"480,83";"480,83";SERVIZIO ELETTRICO NAZIONALE SpA;7134285639;SALDO Fatt.n. 263552205013411  del 04/02/2020 ENERGIA ELETTRICA CENTRO POLIV. -GENNAIO 2020;18-02-2020;561;2;341;1;Spese correnti;3;Acquisto di beni e servizi;2;Acquisto di servizi;5;Utenze e canoni;4;Energia elettrica;18-02-2020;
242;1;0;"75,35";"75,35";SERVIZIO ELETTRICO NAZIONALE SpA;7134285639;SALDO Fatt.n. 263556405046125  del 10/02/2020 ENERGIA ELETTRICA - GENN. 2020;18-02-2020;600;0;342;1;Spese correnti;3;Acquisto di beni e servizi;2;Acquisto di servizi;5;Utenze e canoni;4;Energia elettrica;18-02-2020;
243;1;0;"629,26";"629,26";SERVIZIO ELETTRICO NAZIONALE SpA;7134285639;SALDO Fatt.n. 263555226004535  del 10/02/2020 ENERGIA ELETTRICA CIMITERO-GENN 2020;18-02-2020;413;0;337;1;Spese correnti;3;Acquisto di beni e servizi;2;Acquisto di servizi;5;Utenze e canoni;4;Energia elettrica;18-02-2020;
244;1;0;"399,26";"1.477,35";SERVIZIO ELETTRICO NAZIONALE SpA;7134285639;SALDO Fatt.n. 263558703001129  del 10/02/2020 ENERGIA ELETTRICA - GENN.2020;18-02-2020;530;0;340;1;Spese correnti;3;Acquisto di beni e servizi;2;Acquisto di servizi;5;Utenze e canoni;4;Energia elettrica;18-02-2020;
244;2;0;"1.078,09";"1.477,35";SERVIZIO ELETTRICO NAZIONALE SpA;7134285639;SALDO Fatt.n. 263557855000539  del 10/02/2020 ENERGIA ELETTRICA: GENN. 2020;18-02-2020;530;0;340;1;Spese correnti;3;Acquisto di beni e servizi;2;Acquisto di servizi;5;Utenze e canoni;4;Energia elettrica;18-02-2020;
245;1;0;"211,27";"1.821,57";SERVIZIO ELETTRICO NAZIONALE SpA;7134285639;SALDO Fatt.n. 263551155002029  del 10/02/2020 ENERGIA ELETTRICA-GENN. 2020;18-02-2020;235;0;335;1;Spese correnti;3;Acquisto di beni e servizi;2;Acquisto di servizi;5;Utenze e canoni;4;Energia elettrica;18-02-2020;
245;2;0;"1.610,30";"1.821,57";SERVIZIO ELETTRICO NAZIONALE SpA;7134285639;SALDO Fatt.n. 263554302002029  del 10/02/2020 ENERGIA ELETTRICA-GENNAIO 2020;18-02-2020;235;0;335;1;Spese correnti;3;Acquisto di beni e servizi;2;Acquisto di servizi;5;Utenze e canoni;4;Energia elettrica;18-02-2020;
246;1;0;"567,56";"567,56";SERVIZIO ELETTRICO NAZIONALE SpA;7134285639;SALDO Fatt.n. 263556202002929  del 10/02/2020 ENERGIA ELETTRICA-GENN. 2020;18-02-2020;34;0;333;1;Spese correnti;3;Acquisto di beni e servizi;2;Acquisto di servizi;5;Utenze e canoni;4;Energia elettrica;18-02-2020;
247;1;0;"388,62";"388,62";SERVIZIO ELETTRICO NAZIONALE SpA;7134285639;SALDO Fatt.n. 263556805005529  del 10/02/2020 SERVIZIO ELETTRICO-GENN.2020;18-02-2020;310;0;338;1;Spese correnti;3;Acquisto di beni e servizi;2;Acquisto di servizi;5;Utenze e canoni;4;Energia elettrica;18-02-2020;
248;1;0;"3.416,00";"3.416,00";CLIMASERVICE S.R.L.;Z692B4EC3C;SALDO Fatt.n. 35  del 22/01/2020 ACQUISTO DI N. 2 CLIMATIZZATORI PER VILLA RUBELLI E TORRE EZZ.;18-02-2020;785;0;637;2;Spese in conto capitale;2;Investimenti fissi lordi e acquisto di terreni;1;Beni materiali;10;"Beni immobili di valore culturale, storico ed artistico";8;"Musei, teatri e biblioteche di valore culturale, storico ed artistico";18-02-2020;
249;1;0;"998,00";"998,00";OMESSO NOMINATIVO NEL RISPETTO DELLA NORMATIVA SULLA PROTEZIONE DATI PERSONALI; ;LIQUIDAZIONE CONTRIBUTO REGIONALE DI CUI ALLA DGR N. 705/2019 - LINEA DI INTERVENTO N. 1 - PROGRAMMA DI INTERVENTI ECONOMICI STRAORDINARI A FAVORE DELLE FAMIGLIE IN DIFFICOLTA RESIDENTI IN VENETO. ANNO 2019.;19-02-2020;502;0;65;1;Spese correnti;4;Trasferimenti correnti;2;Trasferimenti correnti a Famiglie;2;Interventi assistenziali;999;Altri assegni e sussidi assistenziali;19-02-2020;
250;1;0;"2.000,00";"2.000,00";CORO MONTE GRAPPA; ;IMPEGNO E LIQUIDAZIONE CONTRIBUTO ECONOMICO ORDINARIO 2020 ALLE ASSOCIAZIONI CORO MONTE GRAPPA E BANDA ALPINA GIRASOLE PEDEMONTANA DEL GRAPPA.;19-02-2020;335;0;61;1;Spese correnti;4;Trasferimenti correnti;1;Trasferimenti correnti a Amministrazioni Pubbliche;4;Trasferimenti correnti a organismi interni e/o unità locali della amministrazione;1;Trasferimenti correnti a organismi interni e/o unità locali della amministrazione;19-02-2020;
251;1;0;"2.000,00";"2.000,00";BANDA ALPINA GIRASOLE PEDEMONTANA DEL GRAPPA; ;IMPEGNO E LIQUIDAZIONE CONTRIBUTO ECONOMICO ORDINARIO 2020 ALLE ASSOCIAZIONI CORO MONTE GRAPPA E BANDA ALPINA GIRASOLE PEDEMONTANA DEL GRAPPA.;19-02-2020;335;0;62;1;Spese correnti;4;Trasferimenti correnti;1;Trasferimenti correnti a Amministrazioni Pubbliche;4;Trasferimenti correnti a organismi interni e/o unità locali della amministrazione;1;Trasferimenti correnti a organismi interni e/o unità locali della amministrazione;19-02-2020;
252;1;0;"2.000,00";"2.000,00";SCUOLA DI MUSICA ERMANNO WOLF FERRARI; ;IMPEGNO E LIQUIDAZIONE CONTRIBUTO ECONOMICO ORDINARIO 2019 ALLASSOCIAZIONE MUSICALE E. W. FERRARI DI SAN ZENONE DEGLI EZZELINI.;19-02-2020;334;0;63;1;Spese correnti;4;Trasferimenti correnti;1;Trasferimenti correnti a Amministrazioni Pubbliche;4;Trasferimenti correnti a organismi interni e/o unità locali della amministrazione;1;Trasferimenti correnti a organismi interni e/o unità locali della amministrazione;19-02-2020;
254;1;0;"306,00";"306,00";OMESSO NOMINATIVO NEL RISPETTO DELLA NORMATIVA SULLA PROTEZIONE DATI PERSONALI; ;PROGETTO DI SOSTEGNO PER DISAGIO ADULTO - FORNITURA PASTI PERIODO NOVEMBRE 2019/APRILE 2020: LIQUIDAZIONE PASTI DI GENNAIO 2020.;20-02-2020;576;0;501;1;Spese correnti;4;Trasferimenti correnti;2;Trasferimenti correnti a Famiglie;2;Interventi assistenziali;999;Altri assegni e sussidi assistenziali;20-02-2020;
255;1;0;"285,38";"285,38";IL GAZZETTINO S.P.A. - UFF. ABBONAMENTI;Z0329A86CE;RINNOVO ABBONAMENTO A IL GAZZETTINO IN FORMATO CARTACEO - 2019. Liquidazione nota di addebito n. NA20190980 del 06/09/2019.;20-02-2020;304;0;436;1;Spese correnti;3;Acquisto di beni e servizi;1;Acquisto di beni;1;"Giornali, riviste e pubblicazioni";1;Giornali e riviste;20-02-2020;
256;1;0;"300,00";"300,00";ASSOCIAZIONE A.P.P.L.E.; ;IMPEGNO DI SPESA E LIQUIDAZIONE CONTRIBUTO A FAVORE DELLASSOCIAZIONE A.P.P.L.E. ASSOCIAZIONE PER LA PREVENZIONE E LA LOTTA ALLELETTROSMOG DI PADOVA PER SEMINARIO INFORMATIVO.;20-02-2020;334;0;71;1;Spese correnti;4;Trasferimenti correnti;1;Trasferimenti correnti a Amministrazioni Pubbliche;4;Trasferimenti correnti a organismi interni e/o unità locali della amministrazione;1;Trasferimenti correnti a organismi interni e/o unità locali della amministrazione;20-02-2020;
257;1;0;"103,70";"103,70";MyO S.P.A.;Z7D2BF81C2;SALDO Fatt.n. 2040/200003514  del 14/02/2020 ACQUISTO MATERIALE X REFERENDUM ELETT.;24-02-2020;9;2;34;1;Spese correnti;3;Acquisto di beni e servizi;1;Acquisto di beni;2;Altri beni di consumo;10;Beni per consultazioni elettorali;24-02-2020;
258;1;0;"423,95";"423,95";SCHINDLER S.P.A.;Z2B2BBF164;SALDO Fatt.n. 349476078  del 14/02/2020 CANONE DI MANUTENZIONE IMP. ELEVATORI;24-02-2020;561;4;37;1;Spese correnti;3;Acquisto di beni e servizi;2;Acquisto di servizi;9;Manutenzione ordinaria e riparazioni;4;Manutenzione ordinaria e riparazioni di impianti e macchinari;24-02-2020;
259;1;0;"1.699,20";"1.699,20";CASA DI RIPOSO 'AITA'; ;SALDO Fatt.n. 51/B  del 11/02/2020 RETTA PERSONA BISOGNOSA L.V. - GENNAIO 2020;24-02-2020;560;0;55;1;Spese correnti;3;Acquisto di beni e servizi;2;Acquisto di servizi;15;Contratti di servizio pubblico;8;Contratti di servizio di assistenza sociale residenziale e semiresidenziale;24-02-2020;
260;1;0;"7.752,86";"7.752,86";GIACOBBO S.R.L.;ZD82693FA8;SALDO Fatt.n. 12  del 18/02/2020 INTERVENTI SU STRADE COMUNALI;24-02-2020;1007;0;573;2;Spese in conto capitale;2;Investimenti fissi lordi e acquisto di terreni;1;Beni materiali;9;Beni immobili;12;Infrastrutture stradali;24-02-2020;
261;1;0;"29.370,00";"29.370,00";EDIL MUNAROLO DI MUNAROLO IVAN & C. S.N.C.;ZB8275138B;ACCONTO Fatt.n. 1A  del 10/02/2020;24-02-2020;780;0;107;2;Spese in conto capitale;2;Investimenti fissi lordi e acquisto di terreni;1;Beni materiali;9;Beni immobili;999;Beni immobili n.a.c.;24-02-2020;
262;1;0;"2.987,27";"2.987,27";EDIL MUNAROLO DI MUNAROLO IVAN & C. S.N.C.;ZB8275138B;SALDO Fatt.n. 1A  del 10/02/2020;24-02-2020;780;0;469;2;Spese in conto capitale;2;Investimenti fissi lordi e acquisto di terreni;1;Beni materiali;9;Beni immobili;999;Beni immobili n.a.c.;24-02-2020;
263;1;0;"12,18";"223,60";TIM S.P.A.;ZE429271DF;SALDO Fatt.n. 8E00066474  del 06/02/2020 LINEA TELEFONICA: DIC. 2019-GENN.2020;24-02-2020;310;0;395;1;Spese correnti;3;Acquisto di beni e servizi;2;Acquisto di servizi;5;Utenze e canoni;999;Utenze e canoni per altri servizi n.a.c.;24-02-2020;
263;2;0;"15,92";"223,60";TIM S.P.A.;ZE429271DF;SALDO Fatt.n. 8E00066008  del 06/02/2020 LINEA TELEFONICA DIC.2019-GENN. 2020;24-02-2020;310;0;395;1;Spese correnti;3;Acquisto di beni e servizi;2;Acquisto di servizi;5;Utenze e canoni;999;Utenze e canoni per altri servizi n.a.c.;24-02-2020;
263;3;0;"21,56";"223,60";TIM S.P.A.;ZE429271DF;SALDO Fatt.n. 8E00066052  del 06/02/2020 LINEA TELEFONICA: DIC. 2019-GENN. 2020;24-02-2020;310;0;395;1;Spese correnti;3;Acquisto di beni e servizi;2;Acquisto di servizi;5;Utenze e canoni;999;Utenze e canoni per altri servizi n.a.c.;24-02-2020;
263;4;0;"173,94";"223,60";TIM S.P.A.;ZE429271DF;ACCONTO Fatt.n. 4220420800003559  del 06/02/2020 LINEA TELEFONICA: DIC. 2019-GENN.2020;24-02-2020;310;0;395;1;Spese correnti;3;Acquisto di beni e servizi;2;Acquisto di servizi;5;Utenze e canoni;999;Utenze e canoni per altri servizi n.a.c.;24-02-2020;
264;1;0;"-81,73";"299,94";TIM S.P.A.;ZE429271DF;SALDO Fatt.n. 8E00065969  del 06/02/2020 LINEA TELEFONICA: DIC. 2019-GENN.2020;24-02-2020;311;0;396;1;Spese correnti;3;Acquisto di beni e servizi;2;Acquisto di servizi;5;Utenze e canoni;999;Utenze e canoni per altri servizi n.a.c.;24-02-2020;
264;2;0;"-81,17";"299,94";TIM S.P.A.;ZE429271DF;SALDO Fatt.n. 8E00067754  del 06/02/2020 LINEA TELEFONICA RIDUZ. CANONI- DIC.2019-GENN.2020;24-02-2020;311;0;396;1;Spese correnti;3;Acquisto di beni e servizi;2;Acquisto di servizi;5;Utenze e canoni;999;Utenze e canoni per altri servizi n.a.c.;24-02-2020;
264;3;0;"-74,86";"299,94";TIM S.P.A.;ZE429271DF;SALDO Fatt.n. 8E00065537  del 06/02/2020 LINEA TELEFONICA: DIC. 2019 - GENN. 2020;24-02-2020;311;0;396;1;Spese correnti;3;Acquisto di beni e servizi;2;Acquisto di servizi;5;Utenze e canoni;999;Utenze e canoni per altri servizi n.a.c.;24-02-2020;
264;4;0;"-60,17";"299,94";TIM S.P.A.;ZE429271DF;SALDO Fatt.n. 8E00066315  del 06/02/2020 LINEA TELEFONICA: DIC. 2019-GENN. 2020;24-02-2020;311;0;396;1;Spese correnti;3;Acquisto di beni e servizi;2;Acquisto di servizi;5;Utenze e canoni;999;Utenze e canoni per altri servizi n.a.c.;24-02-2020;
264;5;0;"-60,17";"299,94";TIM S.P.A.;ZE429271DF;SALDO Fatt.n. 8E00065536  del 06/02/2020 LINEA TELEFONICA ISDN-NUOVI NUMERI DIC. 2019-GENN.2020;24-02-2020;311;0;396;1;Spese correnti;3;Acquisto di beni e servizi;2;Acquisto di servizi;5;Utenze e canoni;999;Utenze e canoni per altri servizi n.a.c.;24-02-2020;
264;6;0;"-60,17";"299,94";TIM S.P.A.;ZE429271DF;SALDO Fatt.n. 8E00067984  del 06/02/2020 LINEA TELEF. -RIDUZ. CANONI -DIC. 2019-GENN 2020;24-02-2020;311;0;396;1;Spese correnti;3;Acquisto di beni e servizi;2;Acquisto di servizi;5;Utenze e canoni;999;Utenze e canoni per altri servizi n.a.c.;24-02-2020;
264;7;0;"-32,77";"299,94";TIM S.P.A.;ZE429271DF;SALDO Fatt.n. 8E00066429  del 06/02/2020 LINEA TELEF. -RID. CANONI-DIC. 2019-GENN.202;24-02-2020;311;0;396;1;Spese correnti;3;Acquisto di beni e servizi;2;Acquisto di servizi;5;Utenze e canoni;999;Utenze e canoni per altri servizi n.a.c.;24-02-2020;
264;8;0;"18,98";"299,94";TIM S.P.A.;ZE429271DF;SALDO Fatt.n. 8E00067317  del 06/02/2020 LINEA TELEF.-RIDUZ. CANONI -DIC. 2019-GENN.2020;24-02-2020;311;0;396;1;Spese correnti;3;Acquisto di beni e servizi;2;Acquisto di servizi;5;Utenze e canoni;999;Utenze e canoni per altri servizi n.a.c.;24-02-2020;
264;9;0;"732,00";"299,94";TIM S.P.A.;ZE429271DF;SALDO Fatt.n. 4220420800003559  del 06/02/2020 LINEA TELEFONICA: DIC. 2019-GENN.2020;24-02-2020;311;0;396;1;Spese correnti;3;Acquisto di beni e servizi;2;Acquisto di servizi;5;Utenze e canoni;999;Utenze e canoni per altri servizi n.a.c.;24-02-2020;
265;1;0;"244,00";"244,00";OLIKON S.R.L.;ZF42BBDF03;SALDO Fatt.n. 6/FT 2020  del 19/02/2020 AFFIDAMENTO FORNITURA SOFTWARE "ACCERTIAMO"PER SUPPORTO FILE;24-02-2020;39;1;36;1;Spese correnti;3;Acquisto di beni e servizi;2;Acquisto di servizi;7;Utilizzo di beni di terzi;6;Licenze d'uso per software;24-02-2020;
266;1;0;"62,00";"62,00";EGAF EDIZIONI SRL;Z732C15B92;SALDO Fatt.n. 2020-V-VE2-601  del 21/02/2020 ACQUISTO PRONTUARI PER CDS - VIGILI;24-02-2020;178;0;66;1;Spese correnti;3;Acquisto di beni e servizi;1;Acquisto di beni;2;Altri beni di consumo;1;"Carta, cancelleria e stampati";24-02-2020;
267;1;0;"146,40";"146,40";TIM S.P.A.;6930022311;ACCONTO Fatt.n. 7X00799236  del 14/02/2020 CANONE TELEFONICO: 2 SEM 2020;24-02-2020;34;0;397;1;Spese correnti;3;Acquisto di beni e servizi;2;Acquisto di servizi;5;Utenze e canoni;999;Utenze e canoni per altri servizi n.a.c.;24-02-2020;
268;1;0;"14,23";"14,23";TIM S.P.A.;6930022311;SALDO Fatt.n. 7X00799236  del 14/02/2020 CANONE TELEFONICO: 2 SEM 2020;24-02-2020;311;0;396;1;Spese correnti;3;Acquisto di beni e servizi;2;Acquisto di servizi;5;Utenze e canoni;999;Utenze e canoni per altri servizi n.a.c.;24-02-2020;
269;1;0;"1.195,60";"1.195,60";INFOBIT  S.N.C.;Z102B2FD9F;SALDO Fatt.n. 0000050/SP  del 21/02/2020 ACQUISTO PERSONAL COMPUTER PER UFF. COMUNALI;24-02-2020;782;0;657;2;Spese in conto capitale;2;Investimenti fissi lordi e acquisto di terreni;1;Beni materiali;5;Attrezzature;999;Attrezzature n.a.c.;24-02-2020;
270;1;0;"154,58";"154,58";ASCOTRADE S.P.A.;ZBA27A07D4;SALDO Fatt.n. 222528  del 21/02/2020 FORNITURA DI GAS STABILI COMUNALI;24-02-2020;530;0;138;1;Spese correnti;3;Acquisto di beni e servizi;2;Acquisto di servizi;5;Utenze e canoni;6;Gas;24-02-2020;
271;1;0;"300,00";"300,00";ALFA ANTINCENDIO S.R.L.;ZA5276F7AD;ACCONTO Fatt.n. 25  del 20/02/2020 REVISIONE ESTINTORI;24-02-2020;310;2;124;1;Spese correnti;3;Acquisto di beni e servizi;2;Acquisto di servizi;13;Servizi ausiliari per il funzionamento dell'ente;999;Altri servizi ausiliari n.a.c.;24-02-2020;
272;1;0;"500,00";"500,00";ALFA ANTINCENDIO S.R.L.;ZA5276F7AD;ACCONTO Fatt.n. 25  del 20/02/2020 REVISIONE ESTINTORI;24-02-2020;34;1;125;1;Spese correnti;3;Acquisto di beni e servizi;2;Acquisto di servizi;9;Manutenzione ordinaria e riparazioni;5;Manutenzione ordinaria e riparazioni di attrezzature;24-02-2020;
273;1;0;"500,00";"500,00";ALFA ANTINCENDIO S.R.L.;ZA5276F7AD;ACCONTO Fatt.n. 25  del 20/02/2020 REVISIONE ESTINTORI;24-02-2020;561;4;126;1;Spese correnti;3;Acquisto di beni e servizi;2;Acquisto di servizi;9;Manutenzione ordinaria e riparazioni;5;Manutenzione ordinaria e riparazioni di attrezzature;24-02-2020;
274;1;0;"97,19";"97,19";ALFA ANTINCENDIO S.R.L.;ZA5276F7AD;SALDO Fatt.n. 25  del 20/02/2020 REVISIONE ESTINTORI;24-02-2020;561;4;132;1;Spese correnti;3;Acquisto di beni e servizi;2;Acquisto di servizi;9;Manutenzione ordinaria e riparazioni;5;Manutenzione ordinaria e riparazioni di attrezzature;24-02-2020;
275;1;0;"242,00";"588,57";POSTE ITALIANE SPA - PROVENTI POLO LOGISTICO;ZC42B68711;SALDO Fatt.n. 8720018587  del 11/02/2020 CONTRATTO POSTA;25-02-2020;34;3;633;1;Spese correnti;3;Acquisto di beni e servizi;2;Acquisto di servizi;16;Servizi amministrativi;2;Spese postali;25-02-2020;
275;2;0;"346,57";"588,57";POSTE ITALIANE SPA - PROVENTI POLO LOGISTICO;ZC42B68711;SALDO Fatt.n. 8720018932  del 17/02/2020 PRODOTTI POSTALI - GENNAIO 2020;25-02-2020;34;3;633;1;Spese correnti;3;Acquisto di beni e servizi;2;Acquisto di servizi;16;Servizi amministrativi;2;Spese postali;25-02-2020;
276;1;0;"400,00";"400,00";COMANDO PROVINCIALE VIGILI DEL FUOCO-SERV.PREV.INCENDI; ;IMPEGNO DI SPESA E LIQUIDAZIONE ONERI DI ISTRUTTORIA AL DIPARTIMENTO VIGILI DEL FUOCO PER VALUTAZIONE PROGETTO DEI LAVORI PER LISTITUZIONE DEL MUSEO DIDATTICO MULTIMEDIALE DELLANTICA PIEVE. C.U.P.: C41B17000650006;27-02-2020;313;3;72;1;Spese correnti;3;Acquisto di beni e servizi;2;Acquisto di servizi;13;Servizi ausiliari per il funzionamento dell'ente;999;Altri servizi ausiliari n.a.c.;27-02-2020;
277;1;0;"437,91";"437,91";OMESSO NOMINATIVO NEL RISPETTO DELLA NORMATIVA SULLA PROTEZIONE DATI PERSONALI; ;CONTRIBUTO ECONOMICO STRAORDINARIO PER LA RIATTIVAZIONE DELLA FORNITURA ELETTRICA.;27-02-2020;576;0;74;1;Spese correnti;4;Trasferimenti correnti;2;Trasferimenti correnti a Famiglie;2;Interventi assistenziali;999;Altri assegni e sussidi assistenziali;27-02-2020;
278;1;0;"6.898,00";"6.898,00";OMESSO NOMINATIVO NEL RISPETTO DELLA NORMATIVA SULLA PROTEZIONE DATI PERSONALI; ;LIQUIDAZIONE CONTRIBUTO REGIONALE DI CUI ALLA DGR N. 705/2019 - LINEA DI INTERVENTO N. 3  - PROGRAMMA DI INTERVENTI ECONOMICI STRAORDINARI A FAVORE DELLE FAMIGLIE IN DIFFICOLTA RESIDENTI IN VENETO. ANNO 2019.;02-03-2020;502;0;648;1;Spese correnti;4;Trasferimenti correnti;2;Trasferimenti correnti a Famiglie;2;Interventi assistenziali;999;Altri assegni e sussidi assistenziali;02-03-2020;
282;1;0;"2.584,00";"2.584,00";TESORERIA PROVINCIALE DELLO STATO; ;VERSAMENTO A SALDO I.V.A. A DEBITO GESTIONE COMMERCIALE (COD. 619E) - RIF. DIICHIARAZIONE ANNUALE I.V.A. PERIODO DIMPOSTA 2019.;04-03-2020;660;0;662;1;Spese correnti;10;Altre spese correnti;3;Versamenti IVA a debito;1;Versamenti IVA a debito per le gestioni commerciali;1;Versamenti IVA a debito per le gestioni commerciali;04-03-2020;
284;1;0;"783,60";"70.000,00";F.LLI CAROLLO S.R.L.;7984302671;SALDO Fatt.n. 2020    14/A  del 31/01/2020 LAVORI DI EFFICIENTAMENTO ENERGETICO PUBBLICA ILLUM.;09-03-2020;1008;3;420;2;Spese in conto capitale;2;Investimenti fissi lordi e acquisto di terreni;1;Beni materiali;9;Beni immobili;12;Infrastrutture stradali;09-03-2020;
284;2;0;"69.216,40";"70.000,00";F.LLI CAROLLO S.R.L.;7984302671;SALDO Fatt.n. 2019   369/A  del 31/12/2019 LAVORI DI EFFICIENTAMENTO ENERGETICO PUBBLICA ILLUMIN.;09-03-2020;1008;3;420;2;Spese in conto capitale;2;Investimenti fissi lordi e acquisto di terreni;1;Beni materiali;9;Beni immobili;12;Infrastrutture stradali;09-03-2020;
285;1;0;"274,56";"274,56";OMESSO NOMINATIVO NEL RISPETTO DELLA NORMATIVA SULLA PROTEZIONE DATI PERSONALI; ;FATT. CASA DI RIPOSO AITA N. 29/B DEL 31.01.2020 PASTI GENNAIO 2020 E FATT. S.E.N. GENN.-FEBBRAIO 2020.;09-03-2020;576;0;90;1;Spese correnti;4;Trasferimenti correnti;2;Trasferimenti correnti a Famiglie;2;Interventi assistenziali;999;Altri assegni e sussidi assistenziali;09-03-2020;
286;1;0;"361,25";"361,25";FARRONATO GIULIANO; ;RETROCESSIONE CONCESSIONE LOCULO N. 33 - 1 FILA - PRIMO SETTORE - CIMITERO DI CA RAINATI.;09-03-2020;581;0;91;1;Spese correnti;4;Trasferimenti correnti;2;Trasferimenti correnti a Famiglie;5;Altri trasferimenti a famiglie;999;Altri trasferimenti a famiglie n.a.c.;09-03-2020;
289;1;0;"850,00";"850,00";CENTRO STUDI AMMINISTRATIVI DELLA M.T.; ;IMPEGNO E LIQUIDAZIONE FORMAZIONE E QUOTA ASSOCIATIVA AL CENTRO STUDI AMMINISTRATIVI DELLA MARCA TREVIGIANA - ANNO 2019.;10-03-2020;25;0;87;1;Spese correnti;3;Acquisto di beni e servizi;2;Acquisto di servizi;4;Acquisto di servizi per formazione e addestramento del personale dell'ente;999;Acquisto di servizi per altre spese per formazione e addestramento n.a.c.;10-03-2020;
306;1;0;"5,00";"5,00";PERSONALE DIPENDENTE - SEDE; ;STIPENDI MESE DI: MARZO 20;11-03-2020;174;0;17;1;Spese correnti;3;Acquisto di beni e servizi;2;Acquisto di servizi;2;"Organizzazione eventi, pubblicita` e servizi per trasferta";1;Rimborso per viaggio e trasloco;11-03-2020;
319;1;0;"5.961,21";"5.961,21";AMMINISTRATORI COMUNALI; ;STIPENDI MESE DI: MARZO 20;11-03-2020;2;0;1;1;Spese correnti;3;Acquisto di beni e servizi;2;Acquisto di servizi;1;Organi e incarichi istituzionali dell'amministrazione;1;Organi istituzionali dell'amministrazione - Indennità;11-03-2020;
322;1;0;"97,53";"97,53";LEGNAMI CECCON S.R.L.;Z2C2B2D039;SALDO Fatt.n. 28/1.001  del 25/02/2020 ELEMENTI IN LEGNO;11-03-2020;743;3;611;2;Spese in conto capitale;2;Investimenti fissi lordi e acquisto di terreni;1;Beni materiali;6;Macchine per ufficio;1;Macchine per ufficio;11-03-2020;
323;1;0;"1.354,46";"1.354,46";KYOCERA DOCUMENT SOLUTIONS ITALIA S.P.A.;ZF02648E30;SALDO Fatt.n. 1010598185  del 25/02/2020 CONTRATTO FOTOCOPIATRICI;11-03-2020;252;0;520;1;Spese correnti;3;Acquisto di beni e servizi;2;Acquisto di servizi;5;Utenze e canoni;999;Utenze e canoni per altri servizi n.a.c.;11-03-2020;
324;1;0;"200,00";"200,00";SONDA COOPERATIVA SOCIALE ONLUS; ;SALDO Fatt.n. 36/PA/2020  del 31/01/2020 RETTE PER PERSONA BISOGNOSA - GENNAIO 2020;11-03-2020;576;0;84;1;Spese correnti;4;Trasferimenti correnti;2;Trasferimenti correnti a Famiglie;2;Interventi assistenziali;999;Altri assegni e sussidi assistenziali;11-03-2020;
325;1;0;"5.490,00";"5.490,00";SIT AMBIENTE & TERRITORIO S.A.S;Z622B2F940;SALDO Fatt.n. 03/2020  del 18/02/2020 TRASFERIMENTO SISTEMA INFORMATICO;11-03-2020;882;0;603;2;Spese in conto capitale;2;Investimenti fissi lordi e acquisto di terreni;3;Beni immateriali;5;Incarichi professionali per la realizzazione di investimenti;1;Incarichi professionali per la realizzazione di investimenti;11-03-2020;
326;1;0;"12.410,72";"12.410,72";Mobilita' di Marca S.P.A.;7976331491;SALDO Fatt.n. 000083  del 17/02/2020 TRASPORTO SCOLASTICO: GENNAIO 2020;11-03-2020;275;1;376;1;Spese correnti;3;Acquisto di beni e servizi;2;Acquisto di servizi;15;Contratti di servizio pubblico;2;Contratti di servizio di trasporto scolastico;11-03-2020;
327;1;0;"16,59";"41,48";LEGNAMI CECCON S.R.L.;Z2C2B2D039;SALDO Fatt.n. 10/1.001  del 20/01/2020 FORNITURA ELEMENTI IN LEGNO;11-03-2020;743;3;611;2;Spese in conto capitale;2;Investimenti fissi lordi e acquisto di terreni;1;Beni materiali;6;Macchine per ufficio;1;Macchine per ufficio;11-03-2020;
327;2;0;"24,89";"41,48";LEGNAMI CECCON S.R.L.;Z2C2B2D039;SALDO Fatt.n. 3/1.001  del 07/01/2020 ACQUISTO SCAFFALATURE IN LEGNO;11-03-2020;743;3;611;2;Spese in conto capitale;2;Investimenti fissi lordi e acquisto di terreni;1;Beni materiali;6;Macchine per ufficio;1;Macchine per ufficio;11-03-2020;
328;1;0;"28.688,00";"28.688,00";DECORI E SYSTEMI DI TEMA ARTAN;ZE22AC98F4;SALDO Fatt.n. FT 2  del 31/01/2020 LAVORI PALESTRA COMUNALE;11-03-2020;775;5;539;2;Spese in conto capitale;2;Investimenti fissi lordi e acquisto di terreni;3;Beni immateriali;5;Incarichi professionali per la realizzazione di investimenti;1;Incarichi professionali per la realizzazione di investimenti;11-03-2020;
329;1;0;"9.999,12";"9.999,12";TEC.SE. SRL;ZD929FFFBA;SALDO Fatt.n. 28  del 30/01/2020 INTERVENTI DI RIFACIMENTO SEGNALETICA STRADALE;12-03-2020;1030;0;477;2;Spese in conto capitale;2;Investimenti fissi lordi e acquisto di terreni;1;Beni materiali;9;Beni immobili;12;Infrastrutture stradali;12-03-2020;
330;1;0;"6.710,00";"6.710,00";COOPERATIVA SOCIALE EOS;Z8E28A710B;SALDO Fatt.n. 8/PA  del 31/01/2020 INCARICO SERVIZI CIMITERIALI;12-03-2020;593;0;353;1;Spese correnti;3;Acquisto di beni e servizi;2;Acquisto di servizi;9;Manutenzione ordinaria e riparazioni;11;Manutenzione ordinaria e riparazioni di altri beni materiali;12-03-2020;
331;1;0;"147,57";"147,57";GREEN TELECOMUNICAZIONI S.P.A.;ZEC2C2978A;SALDO Fatt.n. E2940  del 12/02/2020 SERVIZI DI TELEFONIA - GENNAIO 2020;12-03-2020;34;0;78;1;Spese correnti;3;Acquisto di beni e servizi;2;Acquisto di servizi;5;Utenze e canoni;1;Telefonia fissa;12-03-2020;
332;1;0;"550,82";"550,82";SICURITALIA IVRI S.P.A.;Z3827208DE;ACCONTO Fatt.n. 9117001301  del 13/02/2020 SERVIZI DI PRONTO INTERVENTO ED. COMUNALI - FEBBRAIO 2020;12-03-2020;235;0;171;1;Spese correnti;3;Acquisto di beni e servizi;2;Acquisto di servizi;5;Utenze e canoni;999;Utenze e canoni per altri servizi n.a.c.;12-03-2020;
333;1;0;"16,48";"16,48";SICURITALIA IVRI S.P.A.;Z3827208DE;SALDO Fatt.n. 9117001301  del 13/02/2020 SERVIZI DI PRONTO INTERVENTO ED. COMUNALI - FEBBRAIO 2020;12-03-2020;313;2;94;1;Spese correnti;3;Acquisto di beni e servizi;2;Acquisto di servizi;5;Utenze e canoni;999;Utenze e canoni per altri servizi n.a.c.;12-03-2020;
334;1;0;"113,46";"113,46";MyO S.P.A.;Z7D2BF81C2;SALDO Fatt.n. 2040/200004179  del 21/02/2020 PRATICA PER SEZIONE ELETTORALE;12-03-2020;9;2;34;1;Spese correnti;3;Acquisto di beni e servizi;1;Acquisto di beni;2;Altri beni di consumo;10;Beni per consultazioni elettorali;12-03-2020;
335;1;0;"165,87";"165,87";BELLNET INTERNATIONAL S.R.L.;Z752BFBD5F;SALDO Fatt.n. FATTPA 425_20  del 29/02/2020 TRAFFICO TELEFONICO - MARZO 2020;12-03-2020;34;0;58;1;Spese correnti;3;Acquisto di beni e servizi;2;Acquisto di servizi;5;Utenze e canoni;1;Telefonia fissa;12-03-2020;
336;1;0;"732,00";"732,00";KAPPADUE SNC DI FORNER E. & FAVERO L.;Z182AFE1AD;SALDO Fatt.n. 17  del 30/01/2020 RISTAMPA MAPPE DEI SENTIERI NATURA;12-03-2020;331;0;564;1;Spese correnti;3;Acquisto di beni e servizi;1;Acquisto di beni;2;Altri beni di consumo;999;Altri beni e materiali di consumo n.a.c.;12-03-2020;
337;1;0;"4.724,60";"4.724,60";A.S. DI ANDREATTA GIUSEPPE & C. S.R.L.;Z692B0DDEB;SALDO Fatt.n. 93  del 31/01/2020 OPERE ELETTRICHE PRESSO IST. COMPRENSIVO;12-03-2020;1008;3;581;2;Spese in conto capitale;2;Investimenti fissi lordi e acquisto di terreni;1;Beni materiali;9;Beni immobili;12;Infrastrutture stradali;12-03-2020;
338;1;0;"3.998,40";"3.998,40";KIRIKU' SOCIETA' COOPERATIVA SOCIALE ONLUS;Z6D274937A;SALDO Fatt.n. 244  del 02/03/2020 SPAZIO EDUCATIVO POMERIDIANO: GENN. FEBBR. 2020;12-03-2020;559;0;106;1;Spese correnti;3;Acquisto di beni e servizi;2;Acquisto di servizi;99;Altri servizi;999;Altri servizi diversi n.a.c.;12-03-2020;
339;1;0;"125,90";"125,90";CARROZZERIA CARRON S.R.L.;Z692AFDFFA;SALDO Fatt.n. 115  del 14/02/2020 RIPARAZIONE VEICOLI COMUNALI;12-03-2020;590;1;676;1;Spese correnti;3;Acquisto di beni e servizi;2;Acquisto di servizi;9;Manutenzione ordinaria e riparazioni;1;"Manutenzione ordinaria e riparazioni di mezzi di trasporto ad uso civile, di sicurezza e ordine pubblico";12-03-2020;
340;1;0;"5.612,00";"5.612,00";HALLEY VENETO SRL;Z0826B1CF8;SALDO Fatt.n. 1/200392  del 04/03/2020 AGGIORNAMENTO SERVIZI HALLEY;12-03-2020;39;0;19;1;Spese correnti;3;Acquisto di beni e servizi;2;Acquisto di servizi;19;Servizi informatici e di telecomunicazioni;1;Gestione e manutenzione applicazioni;12-03-2020;
341;1;0;"15.616,00";"15.616,00";HALLEY VENETO SRL;Z0826B1CF8;SALDO Fatt.n. 1/200391  del 04/03/2020 AGGIORNAMENTO SERVIZI HALLEY;12-03-2020;39;0;18;1;Spese correnti;3;Acquisto di beni e servizi;2;Acquisto di servizi;19;Servizi informatici e di telecomunicazioni;1;Gestione e manutenzione applicazioni;12-03-2020;
342;1;0;"737,12";"737,12";SERVIZI TREVISO SRL;Z722852073;SALDO Fatt.n. 2020/39/23  del 06/02/2020 SVOLGIMENTO PRATICHE FISCALI - II SEMESTRE 2019;12-03-2020;559;0;245;1;Spese correnti;3;Acquisto di beni e servizi;2;Acquisto di servizi;99;Altri servizi;999;Altri servizi diversi n.a.c.;12-03-2020;
343;1;0;"5.050,66";"5.050,66";CASA DI RIPOSO 'AITA'; ;SALDO Fatt.n. 100/C  del 28/02/2020 FORNITURA PASTI MENSA - FEBBRAIO 2020;12-03-2020;274;1;54;1;Spese correnti;3;Acquisto di beni e servizi;2;Acquisto di servizi;15;Contratti di servizio pubblico;6;Contratti di servizio per le mense scolastiche;12-03-2020;
344;1;0;"3.162,00";"3.162,00";SARTOR LIVIO;Z522496C1F;SALDO Fatt.n. 3/A  del 03/02/2020 MICROZONAZIONE SISMICA PER IL 13 PIANO DEGLI INTERVENTI;12-03-2020;881;1;352;2;Spese in conto capitale;2;Investimenti fissi lordi e acquisto di terreni;3;Beni immateriali;5;Incarichi professionali per la realizzazione di investimenti;1;Incarichi professionali per la realizzazione di investimenti;12-03-2020;
345;1;0;"1.033,29";"1.033,29";LA IDROFERRAMENTA SRL;Z192700D74;SALDO Fatt.n. 18/PA  del 29/02/2020 FORNITURA MATERIALI DI FERRAMENTA;12-03-2020;591;0;571;1;Spese correnti;3;Acquisto di beni e servizi;1;Acquisto di beni;2;Altri beni di consumo;999;Altri beni e materiali di consumo n.a.c.;12-03-2020;
346;1;0;"2.083,20";"2.083,20";KIRIKU' SOCIETA' COOPERATIVA SOCIALE ONLUS;ZFA2BFBEE7;SALDO Fatt.n. 249  del 02/03/2020 EDUCATIVA DOMICILIARE: GENNAIO-FEBBRAIO 2020;12-03-2020;559;0;56;1;Spese correnti;3;Acquisto di beni e servizi;2;Acquisto di servizi;99;Altri servizi;999;Altri servizi diversi n.a.c.;12-03-2020;
347;1;0;"60,99";"531,31";KUWAIT PETROLEUM ITALIA S.P.A.;Z4E197F01F;SALDO Fatt.n. PJ02304890  del 29/02/2020 CARBURANTE AUTO VIGILI - FEBBRAIO 2020;12-03-2020;590;0;156;1;Spese correnti;3;Acquisto di beni e servizi;1;Acquisto di beni;2;Altri beni di consumo;2;"Carburanti, combustibili e lubrificanti";12-03-2020;
347;2;0;"73,63";"531,31";KUWAIT PETROLEUM ITALIA S.P.A.;Z4E197F01F;SALDO Fatt.n. PJ02184751  del 31/01/2020 CARBURANTE AUTO COMUNALI - GENNAIO 2020;12-03-2020;590;0;156;1;Spese correnti;3;Acquisto di beni e servizi;1;Acquisto di beni;2;Altri beni di consumo;2;"Carburanti, combustibili e lubrificanti";12-03-2020;
347;3;0;"78,99";"531,31";KUWAIT PETROLEUM ITALIA S.P.A.;Z4E197F01F;SALDO Fatt.n. PJ02304887  del 29/02/2020 CARBURANTE AUTO COMUNALI - FEBBRAIO 2020;12-03-2020;590;0;156;1;Spese correnti;3;Acquisto di beni e servizi;1;Acquisto di beni;2;Altri beni di consumo;2;"Carburanti, combustibili e lubrificanti";12-03-2020;
347;4;0;"79,41";"531,31";KUWAIT PETROLEUM ITALIA S.P.A.;Z4E197F01F;SALDO Fatt.n. PJ02184752  del 31/01/2020 CARBURANTE AUTO COMUNALI  - GENNAIO 2020;12-03-2020;590;0;156;1;Spese correnti;3;Acquisto di beni e servizi;1;Acquisto di beni;2;Altri beni di consumo;2;"Carburanti, combustibili e lubrificanti";12-03-2020;
347;5;0;"114,29";"531,31";KUWAIT PETROLEUM ITALIA S.P.A.;Z4E197F01F;SALDO Fatt.n. PJ02304888  del 29/02/2020 CARBURANTE AUTO COMUNALI - FEBBRAIO 2020;12-03-2020;590;0;156;1;Spese correnti;3;Acquisto di beni e servizi;1;Acquisto di beni;2;Altri beni di consumo;2;"Carburanti, combustibili e lubrificanti";12-03-2020;
347;6;0;"124,00";"531,31";KUWAIT PETROLEUM ITALIA S.P.A.;Z4E197F01F;SALDO Fatt.n. PJ02184754  del 31/01/2020 CARBURANTE AUTO VIGILI-GENNAIO 2020;12-03-2020;590;0;156;1;Spese correnti;3;Acquisto di beni e servizi;1;Acquisto di beni;2;Altri beni di consumo;2;"Carburanti, combustibili e lubrificanti";12-03-2020;
348;1;0;"106,99";"215,29";KUWAIT PETROLEUM ITALIA S.P.A.;Z4E197F01F;SALDO Fatt.n. PJ02184753  del 31/01/2020 CARBURANTE AUTO COMUNALI - GENNAIO 2020;12-03-2020;590;0;156;1;Spese correnti;3;Acquisto di beni e servizi;1;Acquisto di beni;2;Altri beni di consumo;2;"Carburanti, combustibili e lubrificanti";12-03-2020;
348;2;0;"108,30";"215,29";KUWAIT PETROLEUM ITALIA S.P.A.;Z4E197F01F;SALDO Fatt.n. PJ02304889  del 29/02/2020 CARBURANTE AUTO UFF. SOCIALE - FEBBRAIO 2020;12-03-2020;590;0;156;1;Spese correnti;3;Acquisto di beni e servizi;1;Acquisto di beni;2;Altri beni di consumo;2;"Carburanti, combustibili e lubrificanti";12-03-2020;
349;1;0;"127,95";"127,95";CISL VENETO SERVIZI S.R.L.;Z722852073;SALDO Fatt.n. TVP/58  del 30/01/2020 PRATICHE PER UFF. SOCIALE;12-03-2020;559;0;245;1;Spese correnti;3;Acquisto di beni e servizi;2;Acquisto di servizi;99;Altri servizi;999;Altri servizi diversi n.a.c.;12-03-2020;
350;1;0;"1.410,00";"1.410,00";O.D.V. PROTEZIONE CIVILE DI SAN ZENONE DEGLI EZZELINI; ;LIQUIDAZIONE DEL SALDO DEL CONTRIBUTO AL GRUPPO COMUNALE DI PROTEZIONE CIVILE DI SAN ZENONE DEGLI EZZELINI - ANNO 2019 -;12-03-2020;382;1;566;1;Spese correnti;4;Trasferimenti correnti;1;Trasferimenti correnti a Amministrazioni Pubbliche;4;Trasferimenti correnti a organismi interni e/o unità locali della amministrazione;1;Trasferimenti correnti a organismi interni e/o unità locali della amministrazione;12-03-2020;
351;1;0;"12.000,00";"39.484,05";SCUOLA D'INFANZIA "CAV. ANGELO CARRON"; ;"LIQUIDAZIONE ACCONTO SUL CONTRIBUTO ORDINARIO ALLE SCUOLE DELL INFANZIA PARROCCHIALI DI SAN ZENONE, LIEDOLO E CA RAINATI PER L ANNO SCOLASTICO 2019/2020.";20-03-2020;221;0;93;1;Spese correnti;4;Trasferimenti correnti;4;Trasferimenti correnti a Istituzioni Sociali Private;1;Trasferimenti correnti a Istituzioni Sociali Private;1;Trasferimenti correnti a Istituzioni Sociali Private;20-03-2020;
351;2;0;"5.659,05";"39.484,05";SCUOLA D'INFANZIA "CAV. ANGELO CARRON" -PARIT. NIDO I.; ;"LIQUIDAZIONE ACCONTO SUL CONTRIBUTO ORDINARIO ALLE SCUOLE DELL INFANZIA PARROCCHIALI DI SAN ZENONE, LIEDOLO E CA RAINATI PER L ANNO SCOLASTICO 2019/2020.";20-03-2020;221;0;93;1;Spese correnti;4;Trasferimenti correnti;4;Trasferimenti correnti a Istituzioni Sociali Private;1;Trasferimenti correnti a Istituzioni Sociali Private;1;Trasferimenti correnti a Istituzioni Sociali Private;20-03-2020;
351;3;0;"6.200,00";"39.484,05";SCUOLA DELL'INFANZIA "SACRI CUORI" di LIEDOLO; ;"LIQUIDAZIONE ACCONTO SUL CONTRIBUTO ORDINARIO ALLE SCUOLE DELL INFANZIA PARROCCHIALI DI SAN ZENONE, LIEDOLO E CA RAINATI PER L ANNO SCOLASTICO 2019/2020.";20-03-2020;221;0;93;1;Spese correnti;4;Trasferimenti correnti;4;Trasferimenti correnti a Istituzioni Sociali Private;1;Trasferimenti correnti a Istituzioni Sociali Private;1;Trasferimenti correnti a Istituzioni Sociali Private;20-03-2020;
351;4;0;"13.600,00";"39.484,05";SCUOLA DELL'INFANZIA PARROCCHIALE S. GIUSEPPE; ;"LIQUIDAZIONE ACCONTO SUL CONTRIBUTO ORDINARIO ALLE SCUOLE DELL INFANZIA PARROCCHIALI DI SAN ZENONE, LIEDOLO E CA RAINATI PER L ANNO SCOLASTICO 2019/2020.";20-03-2020;221;0;93;1;Spese correnti;4;Trasferimenti correnti;4;Trasferimenti correnti a Istituzioni Sociali Private;1;Trasferimenti correnti a Istituzioni Sociali Private;1;Trasferimenti correnti a Istituzioni Sociali Private;20-03-2020;
351;5;0;"2.025,00";"39.484,05";SCUOLA DELL'INFANZIA PARROCCHIALE S. GIUSEPPE - SEZ.PRIMAVERA; ;"LIQUIDAZIONE ACCONTO SUL CONTRIBUTO ORDINARIO ALLE SCUOLE DELL INFANZIA PARROCCHIALI DI SAN ZENONE, LIEDOLO E CA RAINATI PER L ANNO SCOLASTICO 2019/2020.";20-03-2020;221;0;93;1;Spese correnti;4;Trasferimenti correnti;4;Trasferimenti correnti a Istituzioni Sociali Private;1;Trasferimenti correnti a Istituzioni Sociali Private;1;Trasferimenti correnti a Istituzioni Sociali Private;20-03-2020;
352;1;0;"37.851,53";"37.851,53";COSTRUZIONI VIRAGO S.N.C.;7962522106;ACCONTO Fatt.n. 3/PA  del 17/03/2020 ADEGUAMENTO SISMICO EFFICIENTAMENTO ENERGETICO SCUOLA ELEMENTARE CA RAINATI - 2 STATO AVANZAMENTO LAVORI.;25-03-2020;779;0;451;2;Spese in conto capitale;2;Investimenti fissi lordi e acquisto di terreni;1;Beni materiali;9;Beni immobili;3;Fabbricati ad uso scolastico;25-03-2020;
353;1;0;"42.668,47";"42.668,47";COSTRUZIONI VIRAGO S.N.C.;7962522106;SALDO Fatt.n. 3/PA  del 17/03/2020 ADEGUAMENTO SISMICO EFFICIENTAMENTO ENERGETICO SCUOLA ELEMENTARE CA RAINATI - 2 STATO AVANZAMENTO LAVORI.;25-03-2020;779;0;451;2;Spese in conto capitale;2;Investimenti fissi lordi e acquisto di terreni;1;Beni materiali;9;Beni immobili;3;Fabbricati ad uso scolastico;25-03-2020;
354;1;0;"2.060,75";"2.060,75";GIACOBBO S.R.L.;ZFA29216BC;"SALDO Fatt.n. 25  del 24/03/2020 LAVORI DI STRAORDINARIA MANUTENZIONE SEDE STRADALE, MARCIAPIEDI E PARCHEGGIO VIA A. CANOVA - S.A.L. FINALE.";25-03-2020;889;0;365;2;Spese in conto capitale;2;Investimenti fissi lordi e acquisto di terreni;1;Beni materiali;9;Beni immobili;16;Impianti sportivi;25-03-2020;
355;1;0;"8.673,71";"8.673,71";PICCIN CLAUDIO;Z3B1D1A696;SALDO Fatt.n. 80  del 02/03/2020 Compenso revisore dei conti anno 2019 e indennita chilometrica.;25-03-2020;36;0;391;1;Spese correnti;3;Acquisto di beni e servizi;2;Acquisto di servizi;1;Organi e incarichi istituzionali dell'amministrazione;8;"Compensi agli organi istituzionali di revisione, di controllo ed altri incarichi istituzionali dell'amministrazione";25-03-2020;
